{"text_format":"1","workbook":"xlsx","n_sheets":2,"sheets":["HR","G3wi"],"not_rendered":{"charts":0,"images":0,"macros":1,"external_links":0,"defined_names":0,"comments":0,"pivot_tables":0},"unopened":[],"bounds":{"document_bytes":16777216,"sheet_cells":100000,"rows_first":2000,"rows_last":500,"rows_between":2000,"halvings":0,"cell_chars":16384,"cell_head_chars":4096},"cells_cut":0,"cells_raw":0,"read":"whole","date_system":"1900"}

{"sheet":"HR","index":0,"n_rows":298,"n_cols":69,"rows_kept":298,"cut":false,"hidden":false,"merged":[[1,36,2,36],[0,1,0,2],[0,9,0,11],[0,18,0,19],[0,21,0,22],[0,24,0,27],[0,12,0,17],[1,0,2,0],[1,1,2,1],[1,2,2,2],[1,3,2,3],[0,4,0,8]]}
[null,null,null,"From:","2019-08-26",null,null,null,null,"To",null,null,{"$f":"DATE(YEAR(E1),MONTH(E1)+1,25)","v":"2019-09-25"},null,null,null,null,null,"wed",null,null,8,null,null,6122]
["No","Name","Section","JOB",{"$f":"E1","v":"2019-08-26"},{"$f":"E2+1","v":"2019-08-27"},{"$f":"F2+1","v":"2019-08-28"},"2019-08-29","2019-08-30","2019-08-31","2019-09-01","2019-09-02","2019-09-03","2019-09-04","2019-09-05","2019-09-06","2019-09-07","2019-09-08","2019-09-09","2019-09-10","2019-09-11","2019-09-12","2019-09-13",{"$f":"W2+1","v":"2019-09-14"},"2019-09-15","2019-09-16","2019-09-17","2019-09-18","2019-09-19","2019-09-20","2019-09-21","2019-09-22","2019-09-23","2019-09-24","2019-09-25",null,"Day Off"]
[null,null,null,null,{"$f":"TEXT(E2,\"B1DDD\")","v":"Mon"},{"$f":"TEXT(F2,\"B1DDD\")","v":"Tue"},"Wed","Thu","Fri","Sat","Sun","Mon",{"$f":"TEXT(M2,\"B1DDD\")","v":"Tue"},{"$f":"TEXT(N2,\"B1DDD\")","v":"Wed"},{"$f":"TEXT(O2,\"B1DDD\")","v":"Thu"},{"$f":"TEXT(P2,\"B1DDD\")","v":"Fri"},{"$f":"TEXT(Q2,\"B1DDD\")","v":"Sat"},{"$f":"TEXT(R2,\"B1DDD\")","v":"Sun"},"Mon",{"$f":"TEXT(T2,\"B1DDD\")","v":"Tue"},{"$f":"TEXT(U2,\"B1DDD\")","v":"Wed"},{"$f":"TEXT(V2,\"B1DDD\")","v":"Thu"},{"$f":"TEXT(W2,\"B1DDD\")","v":"Fri"},{"$f":"TEXT(X2,\"B1DDD\")","v":"Sat"},{"$f":"TEXT(Y2,\"B1DDD\")","v":"Sun"},"Mon",{"$f":"TEXT(AA2,\"B1DDD\")","v":"Tue"},{"$f":"TEXT(AB2,\"B1DDD\")","v":"Wed"},{"$f":"TEXT(AC2,\"B1DDD\")","v":"Thu"},{"$f":"TEXT(AD2,\"B1DDD\")","v":"Fri"},{"$f":"TEXT(AE2,\"B1DDD\")","v":"Sat"},{"$f":"TEXT(AF2,\"B1DDD\")","v":"Sun"},"Mon",{"$f":"TEXT(AH2,\"B1DDD\")","v":"Tue"},{"$f":"TEXT(AI2,\"B1DDD\")","v":"Wed"}]
[6013,{"$f":"IFERROR(VLOOKUP(A4,G3wi!$A$2:$D$269,2,0),\"\")","v":"Muslhaldin Abdul Alim"},{"$f":"IFERROR(VLOOKUP(A4,G3wi!$A$2:$D$269,3,0),\"\")","v":"n1 Production Section"},{"$f":"IFERROR(VLOOKUP(A4,G3wi!$A$2:$D$269,4,0),\"\")","v":"Out Sourcing Labor"},null,null,null,null,null,null,null,null,null,null,null,null,null,null,null,null,null,null,null,null,null,null,null,null,null,null,null,null,null,null,null,null,{"$f":"COUNTIF(E4:AI4,0)","v":0}]
[6122,null,null,null,8,8,0,8,8,8,8,8,8,0,8,8,8,8,8,8,0,8,8,8,8,8,8,0,8,8,8,8,8,8,0,null,{"$f":"COUNTIF(E5:AI5,0)","v":5},null,1,2,3,4,5,6,7,8,9,10,11,12,13,14,15,16,17,18,19,20,21,22,23,24,25,26,27,28,29,30,31]
[null,null,null,null,null,null,null,null,null,null,null,null,null,null,null,null,null,null,null,null,null,null,null,null,null,null,null,null,null,null,null,null,null,null,null,null,0,null,{"$f":"IF(E3=$S$1,0,$V$1)","v":8},{"$f":"IF(F3=$S$1,0,$V$1)","v":8},0,8,8,8,8,8,8,0,8,8,8,8,8,8,0,8,8,8,8,8,8,0,8,8,8,8,8,8,0]
[]
[null,{"$f":"IFERROR(VLOOKUP(A8,G3wi!$A$2:$D$269,2,0),\"\")","v":""},{"$f":"IFERROR(VLOOKUP(A8,G3wi!$A$2:$D$269,3,0),\"\")","v":""},{"$f":"IFERROR(VLOOKUP(A8,G3wi!$A$2:$D$269,4,0),\"\")","v":""},null,null,null,null,null,null,null,null,null,null,null,null,null,null,null,null,null,null,null,null,null,null,null,null,null,null,null,null,null,null,null,null,0]
[null,{"$f":"IFERROR(VLOOKUP(A9,G3wi!$A$2:$D$269,2,0),\"\")","v":""},{"$f":"IFERROR(VLOOKUP(A9,G3wi!$A$2:$D$269,3,0),\"\")","v":""},{"$f":"IFERROR(VLOOKUP(A9,G3wi!$A$2:$D$269,4,0),\"\")","v":""},null,null,null,null,null,null,null,null,null,null,null,null,null,null,null,null,null,null,null,null,null,null,null,null,null,null,null,null,null,null,null,null,0]
[null,{"$f":"IFERROR(VLOOKUP(A10,G3wi!$A$2:$D$269,2,0),\"\")","v":""},{"$f":"IFERROR(VLOOKUP(A10,G3wi!$A$2:$D$269,3,0),\"\")","v":""},{"$f":"IFERROR(VLOOKUP(A10,G3wi!$A$2:$D$269,4,0),\"\")","v":""},null,null,null,null,null,null,null,null,null,null,null,null,null,null,null,null,null,null,null,null,null,null,null,null,null,null,null,null,null,null,null,null,0]
[null,{"$f":"IFERROR(VLOOKUP(A11,G3wi!$A$2:$D$269,2,0),\"\")","v":""},{"$f":"IFERROR(VLOOKUP(A11,G3wi!$A$2:$D$269,3,0),\"\")","v":""},{"$f":"IFERROR(VLOOKUP(A11,G3wi!$A$2:$D$269,4,0),\"\")","v":""},null,null,null,null,null,null,null,null,null,null,null,null,null,null,null,null,null,null,null,null,null,null,null,null,null,null,null,null,null,null,null,null,0]
[null,{"$f":"IFERROR(VLOOKUP(A12,G3wi!$A$2:$D$269,2,0),\"\")","v":""},{"$f":"IFERROR(VLOOKUP(A12,G3wi!$A$2:$D$269,3,0),\"\")","v":""},{"$f":"IFERROR(VLOOKUP(A12,G3wi!$A$2:$D$269,4,0),\"\")","v":""},null,null,null,null,null,null,null,null,null,null,null,null,null,null,null,null,null,null,null,null,null,null,null,null,null,null,null,null,null,null,null,null,0]
[null,{"$f":"IFERROR(VLOOKUP(A13,G3wi!$A$2:$D$269,2,0),\"\")","v":""},{"$f":"IFERROR(VLOOKUP(A13,G3wi!$A$2:$D$269,3,0),\"\")","v":""},{"$f":"IFERROR(VLOOKUP(A13,G3wi!$A$2:$D$269,4,0),\"\")","v":""},null,null,null,null,null,null,null,null,null,null,null,null,null,null,null,null,null,null,null,null,null,null,null,null,null,null,null,null,null,null,null,null,0]
[null,{"$f":"IFERROR(VLOOKUP(A14,G3wi!$A$2:$D$269,2,0),\"\")","v":""},{"$f":"IFERROR(VLOOKUP(A14,G3wi!$A$2:$D$269,3,0),\"\")","v":""},{"$f":"IFERROR(VLOOKUP(A14,G3wi!$A$2:$D$269,4,0),\"\")","v":""},null,null,null,null,null,null,null,null,null,null,null,null,null,null,null,null,null,null,null,null,null,null,null,null,null,null,null,null,null,null,null,null,0]
[null,{"$f":"IFERROR(VLOOKUP(A15,G3wi!$A$2:$D$269,2,0),\"\")","v":""},{"$f":"IFERROR(VLOOKUP(A15,G3wi!$A$2:$D$269,3,0),\"\")","v":""},{"$f":"IFERROR(VLOOKUP(A15,G3wi!$A$2:$D$269,4,0),\"\")","v":""},null,null,null,null,null,null,null,null,null,null,null,null,null,null,null,null,null,null,null,null,null,null,null,null,null,null,null,null,null,null,null,null,0]
[null,{"$f":"IFERROR(VLOOKUP(A16,G3wi!$A$2:$D$269,2,0),\"\")","v":""},{"$f":"IFERROR(VLOOKUP(A16,G3wi!$A$2:$D$269,3,0),\"\")","v":""},{"$f":"IFERROR(VLOOKUP(A16,G3wi!$A$2:$D$269,4,0),\"\")","v":""},null,null,null,null,null,null,null,null,null,null,null,null,null,null,null,null,null,null,null,null,null,null,null,null,null,null,null,null,null,null,null,null,0]
[null,{"$f":"IFERROR(VLOOKUP(A17,G3wi!$A$2:$D$269,2,0),\"\")","v":""},{"$f":"IFERROR(VLOOKUP(A17,G3wi!$A$2:$D$269,3,0),\"\")","v":""},{"$f":"IFERROR(VLOOKUP(A17,G3wi!$A$2:$D$269,4,0),\"\")","v":""},null,null,null,null,null,null,null,null,null,null,null,null,null,null,null,null,null,null,null,null,null,null,null,null,null,null,null,null,null,null,null,null,0]
[null,{"$f":"IFERROR(VLOOKUP(A18,G3wi!$A$2:$D$269,2,0),\"\")","v":""},{"$f":"IFERROR(VLOOKUP(A18,G3wi!$A$2:$D$269,3,0),\"\")","v":""},{"$f":"IFERROR(VLOOKUP(A18,G3wi!$A$2:$D$269,4,0),\"\")","v":""},null,null,null,null,null,null,null,null,null,null,null,null,null,null,null,null,null,null,null,null,null,null,null,null,null,null,null,null,null,null,null,null,0]
[null,{"$f":"IFERROR(VLOOKUP(A19,G3wi!$A$2:$D$269,2,0),\"\")","v":""},{"$f":"IFERROR(VLOOKUP(A19,G3wi!$A$2:$D$269,3,0),\"\")","v":""},{"$f":"IFERROR(VLOOKUP(A19,G3wi!$A$2:$D$269,4,0),\"\")","v":""},null,null,null,null,null,null,null,null,null,null,null,null,null,null,null,null,null,null,null,null,null,null,null,null,null,null,null,null,null,null,null,null,0]
[null,{"$f":"IFERROR(VLOOKUP(A20,G3wi!$A$2:$D$269,2,0),\"\")","v":""},{"$f":"IFERROR(VLOOKUP(A20,G3wi!$A$2:$D$269,3,0),\"\")","v":""},{"$f":"IFERROR(VLOOKUP(A20,G3wi!$A$2:$D$269,4,0),\"\")","v":""},null,null,null,null,null,null,null,null,null,null,null,null,null,null,null,null,null,null,null,null,null,null,null,null,null,null,null,null,null,null,null,null,0]
[null,{"$f":"IFERROR(VLOOKUP(A21,G3wi!$A$2:$D$269,2,0),\"\")","v":""},{"$f":"IFERROR(VLOOKUP(A21,G3wi!$A$2:$D$269,3,0),\"\")","v":""},{"$f":"IFERROR(VLOOKUP(A21,G3wi!$A$2:$D$269,4,0),\"\")","v":""},null,null,null,null,null,null,null,null,null,null,null,null,null,null,null,null,null,null,null,null,null,null,null,null,null,null,null,null,null,null,null,null,0]
[null,{"$f":"IFERROR(VLOOKUP(A22,G3wi!$A$2:$D$269,2,0),\"\")","v":""},{"$f":"IFERROR(VLOOKUP(A22,G3wi!$A$2:$D$269,3,0),\"\")","v":""},{"$f":"IFERROR(VLOOKUP(A22,G3wi!$A$2:$D$269,4,0),\"\")","v":""},null,null,null,null,null,null,null,null,null,null,null,null,null,null,null,null,null,null,null,null,null,null,null,null,null,null,null,null,null,null,null,null,0]
[null,{"$f":"IFERROR(VLOOKUP(A23,G3wi!$A$2:$D$269,2,0),\"\")","v":""},{"$f":"IFERROR(VLOOKUP(A23,G3wi!$A$2:$D$269,3,0),\"\")","v":""},{"$f":"IFERROR(VLOOKUP(A23,G3wi!$A$2:$D$269,4,0),\"\")","v":""},null,null,null,null,null,null,null,null,null,null,null,null,null,null,null,null,null,null,null,null,null,null,null,null,null,null,null,null,null,null,null,null,0]
[null,{"$f":"IFERROR(VLOOKUP(A24,G3wi!$A$2:$D$269,2,0),\"\")","v":""},{"$f":"IFERROR(VLOOKUP(A24,G3wi!$A$2:$D$269,3,0),\"\")","v":""},{"$f":"IFERROR(VLOOKUP(A24,G3wi!$A$2:$D$269,4,0),\"\")","v":""},null,null,null,null,null,null,null,null,null,null,null,null,null,null,null,null,null,null,null,null,null,null,null,null,null,null,null,null,null,null,null,null,0]
[null,{"$f":"IFERROR(VLOOKUP(A25,G3wi!$A$2:$D$269,2,0),\"\")","v":""},{"$f":"IFERROR(VLOOKUP(A25,G3wi!$A$2:$D$269,3,0),\"\")","v":""},{"$f":"IFERROR(VLOOKUP(A25,G3wi!$A$2:$D$269,4,0),\"\")","v":""},null,null,null,null,null,null,null,null,null,null,null,null,null,null,null,null,null,null,null,null,null,null,null,null,null,null,null,null,null,null,null,null,0]
[null,{"$f":"IFERROR(VLOOKUP(A26,G3wi!$A$2:$D$269,2,0),\"\")","v":""},{"$f":"IFERROR(VLOOKUP(A26,G3wi!$A$2:$D$269,3,0),\"\")","v":""},{"$f":"IFERROR(VLOOKUP(A26,G3wi!$A$2:$D$269,4,0),\"\")","v":""},null,null,null,null,null,null,null,null,null,null,null,null,null,null,null,null,null,null,null,null,null,null,null,null,null,null,null,null,null,null,null,null,0]
[null,{"$f":"IFERROR(VLOOKUP(A27,G3wi!$A$2:$D$269,2,0),\"\")","v":""},{"$f":"IFERROR(VLOOKUP(A27,G3wi!$A$2:$D$269,3,0),\"\")","v":""},{"$f":"IFERROR(VLOOKUP(A27,G3wi!$A$2:$D$269,4,0),\"\")","v":""},null,null,null,null,null,null,null,null,null,null,null,null,null,null,null,null,null,null,null,null,null,null,null,null,null,null,null,null,null,null,null,null,0]
[null,{"$f":"IFERROR(VLOOKUP(A28,G3wi!$A$2:$D$269,2,0),\"\")","v":""},{"$f":"IFERROR(VLOOKUP(A28,G3wi!$A$2:$D$269,3,0),\"\")","v":""},{"$f":"IFERROR(VLOOKUP(A28,G3wi!$A$2:$D$269,4,0),\"\")","v":""},null,null,null,null,null,null,null,null,null,null,null,null,null,null,null,null,null,null,null,null,null,null,null,null,null,null,null,null,null,null,null,null,0]
[null,{"$f":"IFERROR(VLOOKUP(A29,G3wi!$A$2:$D$269,2,0),\"\")","v":""},{"$f":"IFERROR(VLOOKUP(A29,G3wi!$A$2:$D$269,3,0),\"\")","v":""},{"$f":"IFERROR(VLOOKUP(A29,G3wi!$A$2:$D$269,4,0),\"\")","v":""},null,null,null,null,null,null,null,null,null,null,null,null,null,null,null,null,null,null,null,null,null,null,null,null,null,null,null,null,null,null,null,null,0]
[null,{"$f":"IFERROR(VLOOKUP(A30,G3wi!$A$2:$D$269,2,0),\"\")","v":""},{"$f":"IFERROR(VLOOKUP(A30,G3wi!$A$2:$D$269,3,0),\"\")","v":""},{"$f":"IFERROR(VLOOKUP(A30,G3wi!$A$2:$D$269,4,0),\"\")","v":""},null,null,null,null,null,null,null,null,null,null,null,null,null,null,null,null,null,null,null,null,null,null,null,null,null,null,null,null,null,null,null,null,0]
[null,{"$f":"IFERROR(VLOOKUP(A31,G3wi!$A$2:$D$269,2,0),\"\")","v":""},{"$f":"IFERROR(VLOOKUP(A31,G3wi!$A$2:$D$269,3,0),\"\")","v":""},{"$f":"IFERROR(VLOOKUP(A31,G3wi!$A$2:$D$269,4,0),\"\")","v":""},null,null,null,null,null,null,null,null,null,null,null,null,null,null,null,null,null,null,null,null,null,null,null,null,null,null,null,null,null,null,null,null,0]
[null,{"$f":"IFERROR(VLOOKUP(A32,G3wi!$A$2:$D$269,2,0),\"\")","v":""},{"$f":"IFERROR(VLOOKUP(A32,G3wi!$A$2:$D$269,3,0),\"\")","v":""},{"$f":"IFERROR(VLOOKUP(A32,G3wi!$A$2:$D$269,4,0),\"\")","v":""},null,null,null,null,null,null,null,null,null,null,null,null,null,null,null,null,null,null,null,null,null,null,null,null,null,null,null,null,null,null,null,null,0]
[null,{"$f":"IFERROR(VLOOKUP(A33,G3wi!$A$2:$D$269,2,0),\"\")","v":""},{"$f":"IFERROR(VLOOKUP(A33,G3wi!$A$2:$D$269,3,0),\"\")","v":""},{"$f":"IFERROR(VLOOKUP(A33,G3wi!$A$2:$D$269,4,0),\"\")","v":""},null,null,null,null,null,null,null,null,null,null,null,null,null,null,null,null,null,null,null,null,null,null,null,null,null,null,null,null,null,null,null,null,0]
[null,{"$f":"IFERROR(VLOOKUP(A34,G3wi!$A$2:$D$269,2,0),\"\")","v":""},{"$f":"IFERROR(VLOOKUP(A34,G3wi!$A$2:$D$269,3,0),\"\")","v":""},{"$f":"IFERROR(VLOOKUP(A34,G3wi!$A$2:$D$269,4,0),\"\")","v":""},null,null,null,null,null,null,null,null,null,null,null,null,null,null,null,null,null,null,null,null,null,null,null,null,null,null,null,null,null,null,null,null,0]
[null,{"$f":"IFERROR(VLOOKUP(A35,G3wi!$A$2:$D$269,2,0),\"\")","v":""},{"$f":"IFERROR(VLOOKUP(A35,G3wi!$A$2:$D$269,3,0),\"\")","v":""},{"$f":"IFERROR(VLOOKUP(A35,G3wi!$A$2:$D$269,4,0),\"\")","v":""},null,null,null,null,null,null,null,null,null,null,null,null,null,null,null,null,null,null,null,null,null,null,null,null,null,null,null,null,null,null,null,null,0]
[null,{"$f":"IFERROR(VLOOKUP(A36,G3wi!$A$2:$D$269,2,0),\"\")","v":""},{"$f":"IFERROR(VLOOKUP(A36,G3wi!$A$2:$D$269,3,0),\"\")","v":""},{"$f":"IFERROR(VLOOKUP(A36,G3wi!$A$2:$D$269,4,0),\"\")","v":""},null,null,null,null,null,null,null,null,null,null,null,null,null,null,null,null,null,null,null,null,null,null,null,null,null,null,null,null,null,null,null,null,0]
[null,{"$f":"IFERROR(VLOOKUP(A37,G3wi!$A$2:$D$269,2,0),\"\")","v":""},{"$f":"IFERROR(VLOOKUP(A37,G3wi!$A$2:$D$269,3,0),\"\")","v":""},{"$f":"IFERROR(VLOOKUP(A37,G3wi!$A$2:$D$269,4,0),\"\")","v":""},null,null,null,null,null,null,null,null,null,null,null,null,null,null,null,null,null,null,null,null,null,null,null,null,null,null,null,null,null,null,null,null,0]
[null,{"$f":"IFERROR(VLOOKUP(A38,G3wi!$A$2:$D$269,2,0),\"\")","v":""},{"$f":"IFERROR(VLOOKUP(A38,G3wi!$A$2:$D$269,3,0),\"\")","v":""},{"$f":"IFERROR(VLOOKUP(A38,G3wi!$A$2:$D$269,4,0),\"\")","v":""},null,null,null,null,null,null,null,null,null,null,null,null,null,null,null,null,null,null,null,null,null,null,null,null,null,null,null,null,null,null,null,null,0]
[null,{"$f":"IFERROR(VLOOKUP(A39,G3wi!$A$2:$D$269,2,0),\"\")","v":""},{"$f":"IFERROR(VLOOKUP(A39,G3wi!$A$2:$D$269,3,0),\"\")","v":""},{"$f":"IFERROR(VLOOKUP(A39,G3wi!$A$2:$D$269,4,0),\"\")","v":""},null,null,null,null,null,null,null,null,null,null,null,null,null,null,null,null,null,null,null,null,null,null,null,null,null,null,null,null,null,null,null,null,0]
[null,{"$f":"IFERROR(VLOOKUP(A40,G3wi!$A$2:$D$269,2,0),\"\")","v":""},{"$f":"IFERROR(VLOOKUP(A40,G3wi!$A$2:$D$269,3,0),\"\")","v":""},{"$f":"IFERROR(VLOOKUP(A40,G3wi!$A$2:$D$269,4,0),\"\")","v":""},null,null,null,null,null,null,null,null,null,null,null,null,null,null,null,null,null,null,null,null,null,null,null,null,null,null,null,null,null,null,null,null,0]
[null,{"$f":"IFERROR(VLOOKUP(A41,G3wi!$A$2:$D$269,2,0),\"\")","v":""},{"$f":"IFERROR(VLOOKUP(A41,G3wi!$A$2:$D$269,3,0),\"\")","v":""},{"$f":"IFERROR(VLOOKUP(A41,G3wi!$A$2:$D$269,4,0),\"\")","v":""},null,null,null,null,null,null,null,null,null,null,null,null,null,null,null,null,null,null,null,null,null,null,null,null,null,null,null,null,null,null,null,null,0]
[null,{"$f":"IFERROR(VLOOKUP(A42,G3wi!$A$2:$D$269,2,0),\"\")","v":""},{"$f":"IFERROR(VLOOKUP(A42,G3wi!$A$2:$D$269,3,0),\"\")","v":""},{"$f":"IFERROR(VLOOKUP(A42,G3wi!$A$2:$D$269,4,0),\"\")","v":""},null,null,null,null,null,null,null,null,null,null,null,null,null,null,null,null,null,null,null,null,null,null,null,null,null,null,null,null,null,null,null,null,0]
[null,{"$f":"IFERROR(VLOOKUP(A43,G3wi!$A$2:$D$269,2,0),\"\")","v":""},{"$f":"IFERROR(VLOOKUP(A43,G3wi!$A$2:$D$269,3,0),\"\")","v":""},{"$f":"IFERROR(VLOOKUP(A43,G3wi!$A$2:$D$269,4,0),\"\")","v":""},null,null,null,null,null,null,null,null,null,null,null,null,null,null,null,null,null,null,null,null,null,null,null,null,null,null,null,null,null,null,null,null,0]
[null,{"$f":"IFERROR(VLOOKUP(A44,G3wi!$A$2:$D$269,2,0),\"\")","v":""},{"$f":"IFERROR(VLOOKUP(A44,G3wi!$A$2:$D$269,3,0),\"\")","v":""},{"$f":"IFERROR(VLOOKUP(A44,G3wi!$A$2:$D$269,4,0),\"\")","v":""},null,null,null,null,null,null,null,null,null,null,null,null,null,null,null,null,null,null,null,null,null,null,null,null,null,null,null,null,null,null,null,null,0]
[null,{"$f":"IFERROR(VLOOKUP(A45,G3wi!$A$2:$D$269,2,0),\"\")","v":""},{"$f":"IFERROR(VLOOKUP(A45,G3wi!$A$2:$D$269,3,0),\"\")","v":""},{"$f":"IFERROR(VLOOKUP(A45,G3wi!$A$2:$D$269,4,0),\"\")","v":""},null,null,null,null,null,null,null,null,null,null,null,null,null,null,null,null,null,null,null,null,null,null,null,null,null,null,null,null,null,null,null,null,0]
[null,{"$f":"IFERROR(VLOOKUP(A46,G3wi!$A$2:$D$269,2,0),\"\")","v":""},{"$f":"IFERROR(VLOOKUP(A46,G3wi!$A$2:$D$269,3,0),\"\")","v":""},{"$f":"IFERROR(VLOOKUP(A46,G3wi!$A$2:$D$269,4,0),\"\")","v":""},null,null,null,null,null,null,null,null,null,null,null,null,null,null,null,null,null,null,null,null,null,null,null,null,null,null,null,null,null,null,null,null,0]
[null,{"$f":"IFERROR(VLOOKUP(A47,G3wi!$A$2:$D$269,2,0),\"\")","v":""},{"$f":"IFERROR(VLOOKUP(A47,G3wi!$A$2:$D$269,3,0),\"\")","v":""},{"$f":"IFERROR(VLOOKUP(A47,G3wi!$A$2:$D$269,4,0),\"\")","v":""},null,null,null,null,null,null,null,null,null,null,null,null,null,null,null,null,null,null,null,null,null,null,null,null,null,null,null,null,null,null,null,null,0]
[null,{"$f":"IFERROR(VLOOKUP(A48,G3wi!$A$2:$D$269,2,0),\"\")","v":""},{"$f":"IFERROR(VLOOKUP(A48,G3wi!$A$2:$D$269,3,0),\"\")","v":""},{"$f":"IFERROR(VLOOKUP(A48,G3wi!$A$2:$D$269,4,0),\"\")","v":""},null,null,null,null,null,null,null,null,null,null,null,null,null,null,null,null,null,null,null,null,null,null,null,null,null,null,null,null,null,null,null,null,0]
[null,{"$f":"IFERROR(VLOOKUP(A49,G3wi!$A$2:$D$269,2,0),\"\")","v":""},{"$f":"IFERROR(VLOOKUP(A49,G3wi!$A$2:$D$269,3,0),\"\")","v":""},{"$f":"IFERROR(VLOOKUP(A49,G3wi!$A$2:$D$269,4,0),\"\")","v":""},null,null,null,null,null,null,null,null,null,null,null,null,null,null,null,null,null,null,null,null,null,null,null,null,null,null,null,null,null,null,null,null,0]
[null,{"$f":"IFERROR(VLOOKUP(A50,G3wi!$A$2:$D$269,2,0),\"\")","v":""},{"$f":"IFERROR(VLOOKUP(A50,G3wi!$A$2:$D$269,3,0),\"\")","v":""},{"$f":"IFERROR(VLOOKUP(A50,G3wi!$A$2:$D$269,4,0),\"\")","v":""},null,null,null,null,null,null,null,null,null,null,null,null,null,null,null,null,null,null,null,null,null,null,null,null,null,null,null,null,null,null,null,null,0]
[null,{"$f":"IFERROR(VLOOKUP(A51,G3wi!$A$2:$D$269,2,0),\"\")","v":""},{"$f":"IFERROR(VLOOKUP(A51,G3wi!$A$2:$D$269,3,0),\"\")","v":""},{"$f":"IFERROR(VLOOKUP(A51,G3wi!$A$2:$D$269,4,0),\"\")","v":""},null,null,null,null,null,null,null,null,null,null,null,null,null,null,null,null,null,null,null,null,null,null,null,null,null,null,null,null,null,null,null,null,0]
[null,{"$f":"IFERROR(VLOOKUP(A52,G3wi!$A$2:$D$269,2,0),\"\")","v":""},{"$f":"IFERROR(VLOOKUP(A52,G3wi!$A$2:$D$269,3,0),\"\")","v":""},{"$f":"IFERROR(VLOOKUP(A52,G3wi!$A$2:$D$269,4,0),\"\")","v":""},null,null,null,null,null,null,null,null,null,null,null,null,null,null,null,null,null,null,null,null,null,null,null,null,null,null,null,null,null,null,null,null,0]
[null,{"$f":"IFERROR(VLOOKUP(A53,G3wi!$A$2:$D$269,2,0),\"\")","v":""},{"$f":"IFERROR(VLOOKUP(A53,G3wi!$A$2:$D$269,3,0),\"\")","v":""},{"$f":"IFERROR(VLOOKUP(A53,G3wi!$A$2:$D$269,4,0),\"\")","v":""},null,null,null,null,null,null,null,null,null,null,null,null,null,null,null,null,null,null,null,null,null,null,null,null,null,null,null,null,null,null,null,null,0]
[null,{"$f":"IFERROR(VLOOKUP(A54,G3wi!$A$2:$D$269,2,0),\"\")","v":""},{"$f":"IFERROR(VLOOKUP(A54,G3wi!$A$2:$D$269,3,0),\"\")","v":""},{"$f":"IFERROR(VLOOKUP(A54,G3wi!$A$2:$D$269,4,0),\"\")","v":""},null,null,null,null,null,null,null,null,null,null,null,null,null,null,null,null,null,null,null,null,null,null,null,null,null,null,null,null,null,null,null,null,0]
[null,{"$f":"IFERROR(VLOOKUP(A55,G3wi!$A$2:$D$269,2,0),\"\")","v":""},{"$f":"IFERROR(VLOOKUP(A55,G3wi!$A$2:$D$269,3,0),\"\")","v":""},{"$f":"IFERROR(VLOOKUP(A55,G3wi!$A$2:$D$269,4,0),\"\")","v":""},null,null,null,null,null,null,null,null,null,null,null,null,null,null,null,null,null,null,null,null,null,null,null,null,null,null,null,null,null,null,null,null,0]
[null,{"$f":"IFERROR(VLOOKUP(A56,G3wi!$A$2:$D$269,2,0),\"\")","v":""},{"$f":"IFERROR(VLOOKUP(A56,G3wi!$A$2:$D$269,3,0),\"\")","v":""},{"$f":"IFERROR(VLOOKUP(A56,G3wi!$A$2:$D$269,4,0),\"\")","v":""},null,null,null,null,null,null,null,null,null,null,null,null,null,null,null,null,null,null,null,null,null,null,null,null,null,null,null,null,null,null,null,null,0]
[null,{"$f":"IFERROR(VLOOKUP(A57,G3wi!$A$2:$D$269,2,0),\"\")","v":""},{"$f":"IFERROR(VLOOKUP(A57,G3wi!$A$2:$D$269,3,0),\"\")","v":""},{"$f":"IFERROR(VLOOKUP(A57,G3wi!$A$2:$D$269,4,0),\"\")","v":""},null,null,null,null,null,null,null,null,null,null,null,null,null,null,null,null,null,null,null,null,null,null,null,null,null,null,null,null,null,null,null,null,0]
[null,{"$f":"IFERROR(VLOOKUP(A58,G3wi!$A$2:$D$269,2,0),\"\")","v":""},{"$f":"IFERROR(VLOOKUP(A58,G3wi!$A$2:$D$269,3,0),\"\")","v":""},{"$f":"IFERROR(VLOOKUP(A58,G3wi!$A$2:$D$269,4,0),\"\")","v":""},null,null,null,null,null,null,null,null,null,null,null,null,null,null,null,null,null,null,null,null,null,null,null,null,null,null,null,null,null,null,null,null,0]
[null,{"$f":"IFERROR(VLOOKUP(A59,G3wi!$A$2:$D$269,2,0),\"\")","v":""},{"$f":"IFERROR(VLOOKUP(A59,G3wi!$A$2:$D$269,3,0),\"\")","v":""},{"$f":"IFERROR(VLOOKUP(A59,G3wi!$A$2:$D$269,4,0),\"\")","v":""},null,null,null,null,null,null,null,null,null,null,null,null,null,null,null,null,null,null,null,null,null,null,null,null,null,null,null,null,null,null,null,null,0]
[null,{"$f":"IFERROR(VLOOKUP(A60,G3wi!$A$2:$D$269,2,0),\"\")","v":""},{"$f":"IFERROR(VLOOKUP(A60,G3wi!$A$2:$D$269,3,0),\"\")","v":""},{"$f":"IFERROR(VLOOKUP(A60,G3wi!$A$2:$D$269,4,0),\"\")","v":""},null,null,null,null,null,null,null,null,null,null,null,null,null,null,null,null,null,null,null,null,null,null,null,null,null,null,null,null,null,null,null,null,0]
[null,{"$f":"IFERROR(VLOOKUP(A61,G3wi!$A$2:$D$269,2,0),\"\")","v":""},{"$f":"IFERROR(VLOOKUP(A61,G3wi!$A$2:$D$269,3,0),\"\")","v":""},{"$f":"IFERROR(VLOOKUP(A61,G3wi!$A$2:$D$269,4,0),\"\")","v":""},null,null,null,null,null,null,null,null,null,null,null,null,null,null,null,null,null,null,null,null,null,null,null,null,null,null,null,null,null,null,null,null,0]
[null,{"$f":"IFERROR(VLOOKUP(A62,G3wi!$A$2:$D$269,2,0),\"\")","v":""},{"$f":"IFERROR(VLOOKUP(A62,G3wi!$A$2:$D$269,3,0),\"\")","v":""},{"$f":"IFERROR(VLOOKUP(A62,G3wi!$A$2:$D$269,4,0),\"\")","v":""},null,null,null,null,null,null,null,null,null,null,null,null,null,null,null,null,null,null,null,null,null,null,null,null,null,null,null,null,null,null,null,null,0]
[null,{"$f":"IFERROR(VLOOKUP(A63,G3wi!$A$2:$D$269,2,0),\"\")","v":""},{"$f":"IFERROR(VLOOKUP(A63,G3wi!$A$2:$D$269,3,0),\"\")","v":""},{"$f":"IFERROR(VLOOKUP(A63,G3wi!$A$2:$D$269,4,0),\"\")","v":""},null,null,null,null,null,null,null,null,null,null,null,null,null,null,null,null,null,null,null,null,null,null,null,null,null,null,null,null,null,null,null,null,0]
[null,{"$f":"IFERROR(VLOOKUP(A64,G3wi!$A$2:$D$269,2,0),\"\")","v":""},{"$f":"IFERROR(VLOOKUP(A64,G3wi!$A$2:$D$269,3,0),\"\")","v":""},{"$f":"IFERROR(VLOOKUP(A64,G3wi!$A$2:$D$269,4,0),\"\")","v":""},null,null,null,null,null,null,null,null,null,null,null,null,null,null,null,null,null,null,null,null,null,null,null,null,null,null,null,null,null,null,null,null,0]
[null,{"$f":"IFERROR(VLOOKUP(A65,G3wi!$A$2:$D$269,2,0),\"\")","v":""},{"$f":"IFERROR(VLOOKUP(A65,G3wi!$A$2:$D$269,3,0),\"\")","v":""},{"$f":"IFERROR(VLOOKUP(A65,G3wi!$A$2:$D$269,4,0),\"\")","v":""},null,null,null,null,null,null,null,null,null,null,null,null,null,null,null,null,null,null,null,null,null,null,null,null,null,null,null,null,null,null,null,null,0]
[null,{"$f":"IFERROR(VLOOKUP(A66,G3wi!$A$2:$D$269,2,0),\"\")","v":""},{"$f":"IFERROR(VLOOKUP(A66,G3wi!$A$2:$D$269,3,0),\"\")","v":""},{"$f":"IFERROR(VLOOKUP(A66,G3wi!$A$2:$D$269,4,0),\"\")","v":""},null,null,null,null,null,null,null,null,null,null,null,null,null,null,null,null,null,null,null,null,null,null,null,null,null,null,null,null,null,null,null,null,0]
[null,{"$f":"IFERROR(VLOOKUP(A67,G3wi!$A$2:$D$269,2,0),\"\")","v":""},{"$f":"IFERROR(VLOOKUP(A67,G3wi!$A$2:$D$269,3,0),\"\")","v":""},{"$f":"IFERROR(VLOOKUP(A67,G3wi!$A$2:$D$269,4,0),\"\")","v":""},null,null,null,null,null,null,null,null,null,null,null,null,null,null,null,null,null,null,null,null,null,null,null,null,null,null,null,null,null,null,null,null,{"$f":"COUNTIF(E67:AI67,0)","v":0}]
[null,{"$f":"IFERROR(VLOOKUP(A68,G3wi!$A$2:$D$269,2,0),\"\")","v":""},{"$f":"IFERROR(VLOOKUP(A68,G3wi!$A$2:$D$269,3,0),\"\")","v":""},{"$f":"IFERROR(VLOOKUP(A68,G3wi!$A$2:$D$269,4,0),\"\")","v":""},null,null,null,null,null,null,null,null,null,null,null,null,null,null,null,null,null,null,null,null,null,null,null,null,null,null,null,null,null,null,null,null,0]
[null,{"$f":"IFERROR(VLOOKUP(A69,G3wi!$A$2:$D$269,2,0),\"\")","v":""},{"$f":"IFERROR(VLOOKUP(A69,G3wi!$A$2:$D$269,3,0),\"\")","v":""},{"$f":"IFERROR(VLOOKUP(A69,G3wi!$A$2:$D$269,4,0),\"\")","v":""},null,null,null,null,null,null,null,null,null,null,null,null,null,null,null,null,null,null,null,null,null,null,null,null,null,null,null,null,null,null,null,null,0]
[null,{"$f":"IFERROR(VLOOKUP(A70,G3wi!$A$2:$D$269,2,0),\"\")","v":""},{"$f":"IFERROR(VLOOKUP(A70,G3wi!$A$2:$D$269,3,0),\"\")","v":""},{"$f":"IFERROR(VLOOKUP(A70,G3wi!$A$2:$D$269,4,0),\"\")","v":""},null,null,null,null,null,null,null,null,null,null,null,null,null,null,null,null,null,null,null,null,null,null,null,null,null,null,null,null,null,null,null,null,0]
[null,{"$f":"IFERROR(VLOOKUP(A71,G3wi!$A$2:$D$269,2,0),\"\")","v":""},{"$f":"IFERROR(VLOOKUP(A71,G3wi!$A$2:$D$269,3,0),\"\")","v":""},{"$f":"IFERROR(VLOOKUP(A71,G3wi!$A$2:$D$269,4,0),\"\")","v":""},null,null,null,null,null,null,null,null,null,null,null,null,null,null,null,null,null,null,null,null,null,null,null,null,null,null,null,null,null,null,null,null,0]
[null,{"$f":"IFERROR(VLOOKUP(A72,G3wi!$A$2:$D$269,2,0),\"\")","v":""},{"$f":"IFERROR(VLOOKUP(A72,G3wi!$A$2:$D$269,3,0),\"\")","v":""},{"$f":"IFERROR(VLOOKUP(A72,G3wi!$A$2:$D$269,4,0),\"\")","v":""},null,null,null,null,null,null,null,null,null,null,null,null,null,null,null,null,null,null,null,null,null,null,null,null,null,null,null,null,null,null,null,null,0]
[null,{"$f":"IFERROR(VLOOKUP(A73,G3wi!$A$2:$D$269,2,0),\"\")","v":""},{"$f":"IFERROR(VLOOKUP(A73,G3wi!$A$2:$D$269,3,0),\"\")","v":""},{"$f":"IFERROR(VLOOKUP(A73,G3wi!$A$2:$D$269,4,0),\"\")","v":""},null,null,null,null,null,null,null,null,null,null,null,null,null,null,null,null,null,null,null,null,null,null,null,null,null,null,null,null,null,null,null,null,0]
[null,{"$f":"IFERROR(VLOOKUP(A74,G3wi!$A$2:$D$269,2,0),\"\")","v":""},{"$f":"IFERROR(VLOOKUP(A74,G3wi!$A$2:$D$269,3,0),\"\")","v":""},{"$f":"IFERROR(VLOOKUP(A74,G3wi!$A$2:$D$269,4,0),\"\")","v":""},null,null,null,null,null,null,null,null,null,null,null,null,null,null,null,null,null,null,null,null,null,null,null,null,null,null,null,null,null,null,null,null,0]
[null,{"$f":"IFERROR(VLOOKUP(A75,G3wi!$A$2:$D$269,2,0),\"\")","v":""},{"$f":"IFERROR(VLOOKUP(A75,G3wi!$A$2:$D$269,3,0),\"\")","v":""},{"$f":"IFERROR(VLOOKUP(A75,G3wi!$A$2:$D$269,4,0),\"\")","v":""},null,null,null,null,null,null,null,null,null,null,null,null,null,null,null,null,null,null,null,null,null,null,null,null,null,null,null,null,null,null,null,null,0]
[null,{"$f":"IFERROR(VLOOKUP(A76,G3wi!$A$2:$D$269,2,0),\"\")","v":""},{"$f":"IFERROR(VLOOKUP(A76,G3wi!$A$2:$D$269,3,0),\"\")","v":""},{"$f":"IFERROR(VLOOKUP(A76,G3wi!$A$2:$D$269,4,0),\"\")","v":""},null,null,null,null,null,null,null,null,null,null,null,null,null,null,null,null,null,null,null,null,null,null,null,null,null,null,null,null,null,null,null,null,0]
[null,{"$f":"IFERROR(VLOOKUP(A77,G3wi!$A$2:$D$269,2,0),\"\")","v":""},{"$f":"IFERROR(VLOOKUP(A77,G3wi!$A$2:$D$269,3,0),\"\")","v":""},{"$f":"IFERROR(VLOOKUP(A77,G3wi!$A$2:$D$269,4,0),\"\")","v":""},null,null,null,null,null,null,null,null,null,null,null,null,null,null,null,null,null,null,null,null,null,null,null,null,null,null,null,null,null,null,null,null,0]
[null,{"$f":"IFERROR(VLOOKUP(A78,G3wi!$A$2:$D$269,2,0),\"\")","v":""},{"$f":"IFERROR(VLOOKUP(A78,G3wi!$A$2:$D$269,3,0),\"\")","v":""},{"$f":"IFERROR(VLOOKUP(A78,G3wi!$A$2:$D$269,4,0),\"\")","v":""},null,null,null,null,null,null,null,null,null,null,null,null,null,null,null,null,null,null,null,null,null,null,null,null,null,null,null,null,null,null,null,null,0]
[null,{"$f":"IFERROR(VLOOKUP(A79,G3wi!$A$2:$D$269,2,0),\"\")","v":""},{"$f":"IFERROR(VLOOKUP(A79,G3wi!$A$2:$D$269,3,0),\"\")","v":""},{"$f":"IFERROR(VLOOKUP(A79,G3wi!$A$2:$D$269,4,0),\"\")","v":""},null,null,null,null,null,null,null,null,null,null,null,null,null,null,null,null,null,null,null,null,null,null,null,null,null,null,null,null,null,null,null,null,0]
[null,{"$f":"IFERROR(VLOOKUP(A80,G3wi!$A$2:$D$269,2,0),\"\")","v":""},{"$f":"IFERROR(VLOOKUP(A80,G3wi!$A$2:$D$269,3,0),\"\")","v":""},{"$f":"IFERROR(VLOOKUP(A80,G3wi!$A$2:$D$269,4,0),\"\")","v":""},null,null,null,null,null,null,null,null,null,null,null,null,null,null,null,null,null,null,null,null,null,null,null,null,null,null,null,null,null,null,null,null,0]
[null,{"$f":"IFERROR(VLOOKUP(A81,G3wi!$A$2:$D$269,2,0),\"\")","v":""},{"$f":"IFERROR(VLOOKUP(A81,G3wi!$A$2:$D$269,3,0),\"\")","v":""},{"$f":"IFERROR(VLOOKUP(A81,G3wi!$A$2:$D$269,4,0),\"\")","v":""},null,null,null,null,null,null,null,null,null,null,null,null,null,null,null,null,null,null,null,null,null,null,null,null,null,null,null,null,null,null,null,null,0]
[null,{"$f":"IFERROR(VLOOKUP(A82,G3wi!$A$2:$D$269,2,0),\"\")","v":""},{"$f":"IFERROR(VLOOKUP(A82,G3wi!$A$2:$D$269,3,0),\"\")","v":""},{"$f":"IFERROR(VLOOKUP(A82,G3wi!$A$2:$D$269,4,0),\"\")","v":""},null,null,null,null,null,null,null,null,null,null,null,null,null,null,null,null,null,null,null,null,null,null,null,null,null,null,null,null,null,null,null,null,0]
[null,{"$f":"IFERROR(VLOOKUP(A83,G3wi!$A$2:$D$269,2,0),\"\")","v":""},{"$f":"IFERROR(VLOOKUP(A83,G3wi!$A$2:$D$269,3,0),\"\")","v":""},{"$f":"IFERROR(VLOOKUP(A83,G3wi!$A$2:$D$269,4,0),\"\")","v":""},null,null,null,null,null,null,null,null,null,null,null,null,null,null,null,null,null,null,null,null,null,null,null,null,null,null,null,null,null,null,null,null,0]
[null,{"$f":"IFERROR(VLOOKUP(A84,G3wi!$A$2:$D$269,2,0),\"\")","v":""},{"$f":"IFERROR(VLOOKUP(A84,G3wi!$A$2:$D$269,3,0),\"\")","v":""},{"$f":"IFERROR(VLOOKUP(A84,G3wi!$A$2:$D$269,4,0),\"\")","v":""},null,null,null,null,null,null,null,null,null,null,null,null,null,null,null,null,null,null,null,null,null,null,null,null,null,null,null,null,null,null,null,null,0]
[null,{"$f":"IFERROR(VLOOKUP(A85,G3wi!$A$2:$D$269,2,0),\"\")","v":""},{"$f":"IFERROR(VLOOKUP(A85,G3wi!$A$2:$D$269,3,0),\"\")","v":""},{"$f":"IFERROR(VLOOKUP(A85,G3wi!$A$2:$D$269,4,0),\"\")","v":""},null,null,null,null,null,null,null,null,null,null,null,null,null,null,null,null,null,null,null,null,null,null,null,null,null,null,null,null,null,null,null,null,0]
[null,{"$f":"IFERROR(VLOOKUP(A86,G3wi!$A$2:$D$269,2,0),\"\")","v":""},{"$f":"IFERROR(VLOOKUP(A86,G3wi!$A$2:$D$269,3,0),\"\")","v":""},{"$f":"IFERROR(VLOOKUP(A86,G3wi!$A$2:$D$269,4,0),\"\")","v":""},null,null,null,null,null,null,null,null,null,null,null,null,null,null,null,null,null,null,null,null,null,null,null,null,null,null,null,null,null,null,null,null,0]
[null,{"$f":"IFERROR(VLOOKUP(A87,G3wi!$A$2:$D$269,2,0),\"\")","v":""},{"$f":"IFERROR(VLOOKUP(A87,G3wi!$A$2:$D$269,3,0),\"\")","v":""},{"$f":"IFERROR(VLOOKUP(A87,G3wi!$A$2:$D$269,4,0),\"\")","v":""},null,null,null,null,null,null,null,null,null,null,null,null,null,null,null,null,null,null,null,null,null,null,null,null,null,null,null,null,null,null,null,null,0]
[null,{"$f":"IFERROR(VLOOKUP(A88,G3wi!$A$2:$D$269,2,0),\"\")","v":""},{"$f":"IFERROR(VLOOKUP(A88,G3wi!$A$2:$D$269,3,0),\"\")","v":""},{"$f":"IFERROR(VLOOKUP(A88,G3wi!$A$2:$D$269,4,0),\"\")","v":""},null,null,null,null,null,null,null,null,null,null,null,null,null,null,null,null,null,null,null,null,null,null,null,null,null,null,null,null,null,null,null,null,0]
[null,{"$f":"IFERROR(VLOOKUP(A89,G3wi!$A$2:$D$269,2,0),\"\")","v":""},{"$f":"IFERROR(VLOOKUP(A89,G3wi!$A$2:$D$269,3,0),\"\")","v":""},{"$f":"IFERROR(VLOOKUP(A89,G3wi!$A$2:$D$269,4,0),\"\")","v":""},null,null,null,null,null,null,null,null,null,null,null,null,null,null,null,null,null,null,null,null,null,null,null,null,null,null,null,null,null,null,null,null,0]
[null,{"$f":"IFERROR(VLOOKUP(A90,G3wi!$A$2:$D$269,2,0),\"\")","v":""},{"$f":"IFERROR(VLOOKUP(A90,G3wi!$A$2:$D$269,3,0),\"\")","v":""},{"$f":"IFERROR(VLOOKUP(A90,G3wi!$A$2:$D$269,4,0),\"\")","v":""},null,null,null,null,null,null,null,null,null,null,null,null,null,null,null,null,null,null,null,null,null,null,null,null,null,null,null,null,null,null,null,null,0]
[null,{"$f":"IFERROR(VLOOKUP(A91,G3wi!$A$2:$D$269,2,0),\"\")","v":""},{"$f":"IFERROR(VLOOKUP(A91,G3wi!$A$2:$D$269,3,0),\"\")","v":""},{"$f":"IFERROR(VLOOKUP(A91,G3wi!$A$2:$D$269,4,0),\"\")","v":""},null,null,null,null,null,null,null,null,null,null,null,null,null,null,null,null,null,null,null,null,null,null,null,null,null,null,null,null,null,null,null,null,0]
[null,{"$f":"IFERROR(VLOOKUP(A92,G3wi!$A$2:$D$269,2,0),\"\")","v":""},{"$f":"IFERROR(VLOOKUP(A92,G3wi!$A$2:$D$269,3,0),\"\")","v":""},{"$f":"IFERROR(VLOOKUP(A92,G3wi!$A$2:$D$269,4,0),\"\")","v":""},null,null,null,null,null,null,null,null,null,null,null,null,null,null,null,null,null,null,null,null,null,null,null,null,null,null,null,null,null,null,null,null,0]
[null,{"$f":"IFERROR(VLOOKUP(A93,G3wi!$A$2:$D$269,2,0),\"\")","v":""},{"$f":"IFERROR(VLOOKUP(A93,G3wi!$A$2:$D$269,3,0),\"\")","v":""},{"$f":"IFERROR(VLOOKUP(A93,G3wi!$A$2:$D$269,4,0),\"\")","v":""},null,null,null,null,null,null,null,null,null,null,null,null,null,null,null,null,null,null,null,null,null,null,null,null,null,null,null,null,null,null,null,null,0]
[null,{"$f":"IFERROR(VLOOKUP(A94,G3wi!$A$2:$D$269,2,0),\"\")","v":""},{"$f":"IFERROR(VLOOKUP(A94,G3wi!$A$2:$D$269,3,0),\"\")","v":""},{"$f":"IFERROR(VLOOKUP(A94,G3wi!$A$2:$D$269,4,0),\"\")","v":""},null,null,null,null,null,null,null,null,null,null,null,null,null,null,null,null,null,null,null,null,null,null,null,null,null,null,null,null,null,null,null,null,0]
[null,{"$f":"IFERROR(VLOOKUP(A95,G3wi!$A$2:$D$269,2,0),\"\")","v":""},{"$f":"IFERROR(VLOOKUP(A95,G3wi!$A$2:$D$269,3,0),\"\")","v":""},{"$f":"IFERROR(VLOOKUP(A95,G3wi!$A$2:$D$269,4,0),\"\")","v":""},null,null,null,null,null,null,null,null,null,null,null,null,null,null,null,null,null,null,null,null,null,null,null,null,null,null,null,null,null,null,null,null,0]
[null,{"$f":"IFERROR(VLOOKUP(A96,G3wi!$A$2:$D$269,2,0),\"\")","v":""},{"$f":"IFERROR(VLOOKUP(A96,G3wi!$A$2:$D$269,3,0),\"\")","v":""},{"$f":"IFERROR(VLOOKUP(A96,G3wi!$A$2:$D$269,4,0),\"\")","v":""},null,null,null,null,null,null,null,null,null,null,null,null,null,null,null,null,null,null,null,null,null,null,null,null,null,null,null,null,null,null,null,null,0]
[null,{"$f":"IFERROR(VLOOKUP(A97,G3wi!$A$2:$D$269,2,0),\"\")","v":""},{"$f":"IFERROR(VLOOKUP(A97,G3wi!$A$2:$D$269,3,0),\"\")","v":""},{"$f":"IFERROR(VLOOKUP(A97,G3wi!$A$2:$D$269,4,0),\"\")","v":""},null,null,null,null,null,null,null,null,null,null,null,null,null,null,null,null,null,null,null,null,null,null,null,null,null,null,null,null,null,null,null,null,0]
[null,{"$f":"IFERROR(VLOOKUP(A98,G3wi!$A$2:$D$269,2,0),\"\")","v":""},{"$f":"IFERROR(VLOOKUP(A98,G3wi!$A$2:$D$269,3,0),\"\")","v":""},{"$f":"IFERROR(VLOOKUP(A98,G3wi!$A$2:$D$269,4,0),\"\")","v":""},null,null,null,null,null,null,null,null,null,null,null,null,null,null,null,null,null,null,null,null,null,null,null,null,null,null,null,null,null,null,null,null,0]
[null,{"$f":"IFERROR(VLOOKUP(A99,G3wi!$A$2:$D$269,2,0),\"\")","v":""},{"$f":"IFERROR(VLOOKUP(A99,G3wi!$A$2:$D$269,3,0),\"\")","v":""},{"$f":"IFERROR(VLOOKUP(A99,G3wi!$A$2:$D$269,4,0),\"\")","v":""},null,null,null,null,null,null,null,null,null,null,null,null,null,null,null,null,null,null,null,null,null,null,null,null,null,null,null,null,null,null,null,null,0]
[null,{"$f":"IFERROR(VLOOKUP(A100,G3wi!$A$2:$D$269,2,0),\"\")","v":""},{"$f":"IFERROR(VLOOKUP(A100,G3wi!$A$2:$D$269,3,0),\"\")","v":""},{"$f":"IFERROR(VLOOKUP(A100,G3wi!$A$2:$D$269,4,0),\"\")","v":""},null,null,null,null,null,null,null,null,null,null,null,null,null,null,null,null,null,null,null,null,null,null,null,null,null,null,null,null,null,null,null,null,0]
[null,{"$f":"IFERROR(VLOOKUP(A101,G3wi!$A$2:$D$269,2,0),\"\")","v":""},{"$f":"IFERROR(VLOOKUP(A101,G3wi!$A$2:$D$269,3,0),\"\")","v":""},{"$f":"IFERROR(VLOOKUP(A101,G3wi!$A$2:$D$269,4,0),\"\")","v":""},null,null,null,null,null,null,null,null,null,null,null,null,null,null,null,null,null,null,null,null,null,null,null,null,null,null,null,null,null,null,null,null,0]
[null,{"$f":"IFERROR(VLOOKUP(A102,G3wi!$A$2:$D$269,2,0),\"\")","v":""},{"$f":"IFERROR(VLOOKUP(A102,G3wi!$A$2:$D$269,3,0),\"\")","v":""},{"$f":"IFERROR(VLOOKUP(A102,G3wi!$A$2:$D$269,4,0),\"\")","v":""},null,null,null,null,null,null,null,null,null,null,null,null,null,null,null,null,null,null,null,null,null,null,null,null,null,null,null,null,null,null,null,null,0]
[null,{"$f":"IFERROR(VLOOKUP(A103,G3wi!$A$2:$D$269,2,0),\"\")","v":""},{"$f":"IFERROR(VLOOKUP(A103,G3wi!$A$2:$D$269,3,0),\"\")","v":""},{"$f":"IFERROR(VLOOKUP(A103,G3wi!$A$2:$D$269,4,0),\"\")","v":""},null,null,null,null,null,null,null,null,null,null,null,null,null,null,null,null,null,null,null,null,null,null,null,null,null,null,null,null,null,null,null,null,0]
[null,{"$f":"IFERROR(VLOOKUP(A104,G3wi!$A$2:$D$269,2,0),\"\")","v":""},{"$f":"IFERROR(VLOOKUP(A104,G3wi!$A$2:$D$269,3,0),\"\")","v":""},{"$f":"IFERROR(VLOOKUP(A104,G3wi!$A$2:$D$269,4,0),\"\")","v":""},null,null,null,null,null,null,null,null,null,null,null,null,null,null,null,null,null,null,null,null,null,null,null,null,null,null,null,null,null,null,null,null,0]
[null,{"$f":"IFERROR(VLOOKUP(A105,G3wi!$A$2:$D$269,2,0),\"\")","v":""},{"$f":"IFERROR(VLOOKUP(A105,G3wi!$A$2:$D$269,3,0),\"\")","v":""},{"$f":"IFERROR(VLOOKUP(A105,G3wi!$A$2:$D$269,4,0),\"\")","v":""},null,null,null,null,null,null,null,null,null,null,null,null,null,null,null,null,null,null,null,null,null,null,null,null,null,null,null,null,null,null,null,null,0]
[null,{"$f":"IFERROR(VLOOKUP(A106,G3wi!$A$2:$D$269,2,0),\"\")","v":""},{"$f":"IFERROR(VLOOKUP(A106,G3wi!$A$2:$D$269,3,0),\"\")","v":""},{"$f":"IFERROR(VLOOKUP(A106,G3wi!$A$2:$D$269,4,0),\"\")","v":""},null,null,null,null,null,null,null,null,null,null,null,null,null,null,null,null,null,null,null,null,null,null,null,null,null,null,null,null,null,null,null,null,0]
[null,{"$f":"IFERROR(VLOOKUP(A107,G3wi!$A$2:$D$269,2,0),\"\")","v":""},{"$f":"IFERROR(VLOOKUP(A107,G3wi!$A$2:$D$269,3,0),\"\")","v":""},{"$f":"IFERROR(VLOOKUP(A107,G3wi!$A$2:$D$269,4,0),\"\")","v":""},null,null,null,null,null,null,null,null,null,null,null,null,null,null,null,null,null,null,null,null,null,null,null,null,null,null,null,null,null,null,null,null,0]
[null,{"$f":"IFERROR(VLOOKUP(A108,G3wi!$A$2:$D$269,2,0),\"\")","v":""},{"$f":"IFERROR(VLOOKUP(A108,G3wi!$A$2:$D$269,3,0),\"\")","v":""},{"$f":"IFERROR(VLOOKUP(A108,G3wi!$A$2:$D$269,4,0),\"\")","v":""},null,null,null,null,null,null,null,null,null,null,null,null,null,null,null,null,null,null,null,null,null,null,null,null,null,null,null,null,null,null,null,null,0]
[null,{"$f":"IFERROR(VLOOKUP(A109,G3wi!$A$2:$D$269,2,0),\"\")","v":""},{"$f":"IFERROR(VLOOKUP(A109,G3wi!$A$2:$D$269,3,0),\"\")","v":""},{"$f":"IFERROR(VLOOKUP(A109,G3wi!$A$2:$D$269,4,0),\"\")","v":""},null,null,null,null,null,null,null,null,null,null,null,null,null,null,null,null,null,null,null,null,null,null,null,null,null,null,null,null,null,null,null,null,0]
[null,{"$f":"IFERROR(VLOOKUP(A110,G3wi!$A$2:$D$269,2,0),\"\")","v":""},{"$f":"IFERROR(VLOOKUP(A110,G3wi!$A$2:$D$269,3,0),\"\")","v":""},{"$f":"IFERROR(VLOOKUP(A110,G3wi!$A$2:$D$269,4,0),\"\")","v":""},null,null,null,null,null,null,null,null,null,null,null,null,null,null,null,null,null,null,null,null,null,null,null,null,null,null,null,null,null,null,null,null,0]
[null,{"$f":"IFERROR(VLOOKUP(A111,G3wi!$A$2:$D$269,2,0),\"\")","v":""},{"$f":"IFERROR(VLOOKUP(A111,G3wi!$A$2:$D$269,3,0),\"\")","v":""},{"$f":"IFERROR(VLOOKUP(A111,G3wi!$A$2:$D$269,4,0),\"\")","v":""},null,null,null,null,null,null,null,null,null,null,null,null,null,null,null,null,null,null,null,null,null,null,null,null,null,null,null,null,null,null,null,null,0]
[null,{"$f":"IFERROR(VLOOKUP(A112,G3wi!$A$2:$D$269,2,0),\"\")","v":""},{"$f":"IFERROR(VLOOKUP(A112,G3wi!$A$2:$D$269,3,0),\"\")","v":""},{"$f":"IFERROR(VLOOKUP(A112,G3wi!$A$2:$D$269,4,0),\"\")","v":""},null,null,null,null,null,null,null,null,null,null,null,null,null,null,null,null,null,null,null,null,null,null,null,null,null,null,null,null,null,null,null,null,0]
[null,{"$f":"IFERROR(VLOOKUP(A113,G3wi!$A$2:$D$269,2,0),\"\")","v":""},{"$f":"IFERROR(VLOOKUP(A113,G3wi!$A$2:$D$269,3,0),\"\")","v":""},{"$f":"IFERROR(VLOOKUP(A113,G3wi!$A$2:$D$269,4,0),\"\")","v":""},null,null,null,null,null,null,null,null,null,null,null,null,null,null,null,null,null,null,null,null,null,null,null,null,null,null,null,null,null,null,null,null,0]
[null,{"$f":"IFERROR(VLOOKUP(A114,G3wi!$A$2:$D$269,2,0),\"\")","v":""},{"$f":"IFERROR(VLOOKUP(A114,G3wi!$A$2:$D$269,3,0),\"\")","v":""},{"$f":"IFERROR(VLOOKUP(A114,G3wi!$A$2:$D$269,4,0),\"\")","v":""},null,null,null,null,null,null,null,null,null,null,null,null,null,null,null,null,null,null,null,null,null,null,null,null,null,null,null,null,null,null,null,null,0]
[null,{"$f":"IFERROR(VLOOKUP(A115,G3wi!$A$2:$D$269,2,0),\"\")","v":""},{"$f":"IFERROR(VLOOKUP(A115,G3wi!$A$2:$D$269,3,0),\"\")","v":""},{"$f":"IFERROR(VLOOKUP(A115,G3wi!$A$2:$D$269,4,0),\"\")","v":""},null,null,null,null,null,null,null,null,null,null,null,null,null,null,null,null,null,null,null,null,null,null,null,null,null,null,null,null,null,null,null,null,0]
[null,{"$f":"IFERROR(VLOOKUP(A116,G3wi!$A$2:$D$269,2,0),\"\")","v":""},{"$f":"IFERROR(VLOOKUP(A116,G3wi!$A$2:$D$269,3,0),\"\")","v":""},{"$f":"IFERROR(VLOOKUP(A116,G3wi!$A$2:$D$269,4,0),\"\")","v":""},null,null,null,null,null,null,null,null,null,null,null,null,null,null,null,null,null,null,null,null,null,null,null,null,null,null,null,null,null,null,null,null,0]
[null,{"$f":"IFERROR(VLOOKUP(A117,G3wi!$A$2:$D$269,2,0),\"\")","v":""},{"$f":"IFERROR(VLOOKUP(A117,G3wi!$A$2:$D$269,3,0),\"\")","v":""},{"$f":"IFERROR(VLOOKUP(A117,G3wi!$A$2:$D$269,4,0),\"\")","v":""},null,null,null,null,null,null,null,null,null,null,null,null,null,null,null,null,null,null,null,null,null,null,null,null,null,null,null,null,null,null,null,null,0]
[null,{"$f":"IFERROR(VLOOKUP(A118,G3wi!$A$2:$D$269,2,0),\"\")","v":""},{"$f":"IFERROR(VLOOKUP(A118,G3wi!$A$2:$D$269,3,0),\"\")","v":""},{"$f":"IFERROR(VLOOKUP(A118,G3wi!$A$2:$D$269,4,0),\"\")","v":""},null,null,null,null,null,null,null,null,null,null,null,null,null,null,null,null,null,null,null,null,null,null,null,null,null,null,null,null,null,null,null,null,0]
[null,{"$f":"IFERROR(VLOOKUP(A119,G3wi!$A$2:$D$269,2,0),\"\")","v":""},{"$f":"IFERROR(VLOOKUP(A119,G3wi!$A$2:$D$269,3,0),\"\")","v":""},{"$f":"IFERROR(VLOOKUP(A119,G3wi!$A$2:$D$269,4,0),\"\")","v":""},null,null,null,null,null,null,null,null,null,null,null,null,null,null,null,null,null,null,null,null,null,null,null,null,null,null,null,null,null,null,null,null,0]
[null,{"$f":"IFERROR(VLOOKUP(A120,G3wi!$A$2:$D$269,2,0),\"\")","v":""},{"$f":"IFERROR(VLOOKUP(A120,G3wi!$A$2:$D$269,3,0),\"\")","v":""},{"$f":"IFERROR(VLOOKUP(A120,G3wi!$A$2:$D$269,4,0),\"\")","v":""},null,null,null,null,null,null,null,null,null,null,null,null,null,null,null,null,null,null,null,null,null,null,null,null,null,null,null,null,null,null,null,null,0]
[null,{"$f":"IFERROR(VLOOKUP(A121,G3wi!$A$2:$D$269,2,0),\"\")","v":""},{"$f":"IFERROR(VLOOKUP(A121,G3wi!$A$2:$D$269,3,0),\"\")","v":""},{"$f":"IFERROR(VLOOKUP(A121,G3wi!$A$2:$D$269,4,0),\"\")","v":""},null,null,null,null,null,null,null,null,null,null,null,null,null,null,null,null,null,null,null,null,null,null,null,null,null,null,null,null,null,null,null,null,0]
[null,{"$f":"IFERROR(VLOOKUP(A122,G3wi!$A$2:$D$269,2,0),\"\")","v":""},{"$f":"IFERROR(VLOOKUP(A122,G3wi!$A$2:$D$269,3,0),\"\")","v":""},{"$f":"IFERROR(VLOOKUP(A122,G3wi!$A$2:$D$269,4,0),\"\")","v":""},null,null,null,null,null,null,null,null,null,null,null,null,null,null,null,null,null,null,null,null,null,null,null,null,null,null,null,null,null,null,null,null,0]
[null,{"$f":"IFERROR(VLOOKUP(A123,G3wi!$A$2:$D$269,2,0),\"\")","v":""},{"$f":"IFERROR(VLOOKUP(A123,G3wi!$A$2:$D$269,3,0),\"\")","v":""},{"$f":"IFERROR(VLOOKUP(A123,G3wi!$A$2:$D$269,4,0),\"\")","v":""},null,null,null,null,null,null,null,null,null,null,null,null,null,null,null,null,null,null,null,null,null,null,null,null,null,null,null,null,null,null,null,null,0]
[null,{"$f":"IFERROR(VLOOKUP(A124,G3wi!$A$2:$D$269,2,0),\"\")","v":""},{"$f":"IFERROR(VLOOKUP(A124,G3wi!$A$2:$D$269,3,0),\"\")","v":""},{"$f":"IFERROR(VLOOKUP(A124,G3wi!$A$2:$D$269,4,0),\"\")","v":""},null,null,null,null,null,null,null,null,null,null,null,null,null,null,null,null,null,null,null,null,null,null,null,null,null,null,null,null,null,null,null,null,0]
[null,{"$f":"IFERROR(VLOOKUP(A125,G3wi!$A$2:$D$269,2,0),\"\")","v":""},{"$f":"IFERROR(VLOOKUP(A125,G3wi!$A$2:$D$269,3,0),\"\")","v":""},{"$f":"IFERROR(VLOOKUP(A125,G3wi!$A$2:$D$269,4,0),\"\")","v":""},null,null,null,null,null,null,null,null,null,null,null,null,null,null,null,null,null,null,null,null,null,null,null,null,null,null,null,null,null,null,null,null,0]
[null,{"$f":"IFERROR(VLOOKUP(A126,G3wi!$A$2:$D$269,2,0),\"\")","v":""},{"$f":"IFERROR(VLOOKUP(A126,G3wi!$A$2:$D$269,3,0),\"\")","v":""},{"$f":"IFERROR(VLOOKUP(A126,G3wi!$A$2:$D$269,4,0),\"\")","v":""},null,null,null,null,null,null,null,null,null,null,null,null,null,null,null,null,null,null,null,null,null,null,null,null,null,null,null,null,null,null,null,null,0]
[null,{"$f":"IFERROR(VLOOKUP(A127,G3wi!$A$2:$D$269,2,0),\"\")","v":""},{"$f":"IFERROR(VLOOKUP(A127,G3wi!$A$2:$D$269,3,0),\"\")","v":""},{"$f":"IFERROR(VLOOKUP(A127,G3wi!$A$2:$D$269,4,0),\"\")","v":""},null,null,null,null,null,null,null,null,null,null,null,null,null,null,null,null,null,null,null,null,null,null,null,null,null,null,null,null,null,null,null,null,0]
[null,{"$f":"IFERROR(VLOOKUP(A128,G3wi!$A$2:$D$269,2,0),\"\")","v":""},{"$f":"IFERROR(VLOOKUP(A128,G3wi!$A$2:$D$269,3,0),\"\")","v":""},{"$f":"IFERROR(VLOOKUP(A128,G3wi!$A$2:$D$269,4,0),\"\")","v":""},null,null,null,null,null,null,null,null,null,null,null,null,null,null,null,null,null,null,null,null,null,null,null,null,null,null,null,null,null,null,null,null,0]
[null,{"$f":"IFERROR(VLOOKUP(A129,G3wi!$A$2:$D$269,2,0),\"\")","v":""},{"$f":"IFERROR(VLOOKUP(A129,G3wi!$A$2:$D$269,3,0),\"\")","v":""},{"$f":"IFERROR(VLOOKUP(A129,G3wi!$A$2:$D$269,4,0),\"\")","v":""},null,null,null,null,null,null,null,null,null,null,null,null,null,null,null,null,null,null,null,null,null,null,null,null,null,null,null,null,null,null,null,null,0]
[null,{"$f":"IFERROR(VLOOKUP(A130,G3wi!$A$2:$D$269,2,0),\"\")","v":""},{"$f":"IFERROR(VLOOKUP(A130,G3wi!$A$2:$D$269,3,0),\"\")","v":""},{"$f":"IFERROR(VLOOKUP(A130,G3wi!$A$2:$D$269,4,0),\"\")","v":""},null,null,null,null,null,null,null,null,null,null,null,null,null,null,null,null,null,null,null,null,null,null,null,null,null,null,null,null,null,null,null,null,0]
[null,{"$f":"IFERROR(VLOOKUP(A131,G3wi!$A$2:$D$269,2,0),\"\")","v":""},{"$f":"IFERROR(VLOOKUP(A131,G3wi!$A$2:$D$269,3,0),\"\")","v":""},{"$f":"IFERROR(VLOOKUP(A131,G3wi!$A$2:$D$269,4,0),\"\")","v":""},null,null,null,null,null,null,null,null,null,null,null,null,null,null,null,null,null,null,null,null,null,null,null,null,null,null,null,null,null,null,null,null,{"$f":"COUNTIF(E131:AI131,0)","v":0}]
[null,{"$f":"IFERROR(VLOOKUP(A132,G3wi!$A$2:$D$269,2,0),\"\")","v":""},{"$f":"IFERROR(VLOOKUP(A132,G3wi!$A$2:$D$269,3,0),\"\")","v":""},{"$f":"IFERROR(VLOOKUP(A132,G3wi!$A$2:$D$269,4,0),\"\")","v":""},null,null,null,null,null,null,null,null,null,null,null,null,null,null,null,null,null,null,null,null,null,null,null,null,null,null,null,null,null,null,null,null,0]
[null,{"$f":"IFERROR(VLOOKUP(A133,G3wi!$A$2:$D$269,2,0),\"\")","v":""},{"$f":"IFERROR(VLOOKUP(A133,G3wi!$A$2:$D$269,3,0),\"\")","v":""},{"$f":"IFERROR(VLOOKUP(A133,G3wi!$A$2:$D$269,4,0),\"\")","v":""},null,null,null,null,null,null,null,null,null,null,null,null,null,null,null,null,null,null,null,null,null,null,null,null,null,null,null,null,null,null,null,null,0]
[null,{"$f":"IFERROR(VLOOKUP(A134,G3wi!$A$2:$D$269,2,0),\"\")","v":""},{"$f":"IFERROR(VLOOKUP(A134,G3wi!$A$2:$D$269,3,0),\"\")","v":""},{"$f":"IFERROR(VLOOKUP(A134,G3wi!$A$2:$D$269,4,0),\"\")","v":""},null,null,null,null,null,null,null,null,null,null,null,null,null,null,null,null,null,null,null,null,null,null,null,null,null,null,null,null,null,null,null,null,0]
[null,{"$f":"IFERROR(VLOOKUP(A135,G3wi!$A$2:$D$269,2,0),\"\")","v":""},{"$f":"IFERROR(VLOOKUP(A135,G3wi!$A$2:$D$269,3,0),\"\")","v":""},{"$f":"IFERROR(VLOOKUP(A135,G3wi!$A$2:$D$269,4,0),\"\")","v":""},null,null,null,null,null,null,null,null,null,null,null,null,null,null,null,null,null,null,null,null,null,null,null,null,null,null,null,null,null,null,null,null,0]
[null,{"$f":"IFERROR(VLOOKUP(A136,G3wi!$A$2:$D$269,2,0),\"\")","v":""},{"$f":"IFERROR(VLOOKUP(A136,G3wi!$A$2:$D$269,3,0),\"\")","v":""},{"$f":"IFERROR(VLOOKUP(A136,G3wi!$A$2:$D$269,4,0),\"\")","v":""},null,null,null,null,null,null,null,null,null,null,null,null,null,null,null,null,null,null,null,null,null,null,null,null,null,null,null,null,null,null,null,null,0]
[null,{"$f":"IFERROR(VLOOKUP(A137,G3wi!$A$2:$D$269,2,0),\"\")","v":""},{"$f":"IFERROR(VLOOKUP(A137,G3wi!$A$2:$D$269,3,0),\"\")","v":""},{"$f":"IFERROR(VLOOKUP(A137,G3wi!$A$2:$D$269,4,0),\"\")","v":""},null,null,null,null,null,null,null,null,null,null,null,null,null,null,null,null,null,null,null,null,null,null,null,null,null,null,null,null,null,null,null,null,0]
[null,{"$f":"IFERROR(VLOOKUP(A138,G3wi!$A$2:$D$269,2,0),\"\")","v":""},{"$f":"IFERROR(VLOOKUP(A138,G3wi!$A$2:$D$269,3,0),\"\")","v":""},{"$f":"IFERROR(VLOOKUP(A138,G3wi!$A$2:$D$269,4,0),\"\")","v":""},null,null,null,null,null,null,null,null,null,null,null,null,null,null,null,null,null,null,null,null,null,null,null,null,null,null,null,null,null,null,null,null,0]
[null,{"$f":"IFERROR(VLOOKUP(A139,G3wi!$A$2:$D$269,2,0),\"\")","v":""},{"$f":"IFERROR(VLOOKUP(A139,G3wi!$A$2:$D$269,3,0),\"\")","v":""},{"$f":"IFERROR(VLOOKUP(A139,G3wi!$A$2:$D$269,4,0),\"\")","v":""},null,null,null,null,null,null,null,null,null,null,null,null,null,null,null,null,null,null,null,null,null,null,null,null,null,null,null,null,null,null,null,null,0]
[null,{"$f":"IFERROR(VLOOKUP(A140,G3wi!$A$2:$D$269,2,0),\"\")","v":""},{"$f":"IFERROR(VLOOKUP(A140,G3wi!$A$2:$D$269,3,0),\"\")","v":""},{"$f":"IFERROR(VLOOKUP(A140,G3wi!$A$2:$D$269,4,0),\"\")","v":""},null,null,null,null,null,null,null,null,null,null,null,null,null,null,null,null,null,null,null,null,null,null,null,null,null,null,null,null,null,null,null,null,0]
[null,{"$f":"IFERROR(VLOOKUP(A141,G3wi!$A$2:$D$269,2,0),\"\")","v":""},{"$f":"IFERROR(VLOOKUP(A141,G3wi!$A$2:$D$269,3,0),\"\")","v":""},{"$f":"IFERROR(VLOOKUP(A141,G3wi!$A$2:$D$269,4,0),\"\")","v":""},null,null,null,null,null,null,null,null,null,null,null,null,null,null,null,null,null,null,null,null,null,null,null,null,null,null,null,null,null,null,null,null,0]
[null,{"$f":"IFERROR(VLOOKUP(A142,G3wi!$A$2:$D$269,2,0),\"\")","v":""},{"$f":"IFERROR(VLOOKUP(A142,G3wi!$A$2:$D$269,3,0),\"\")","v":""},{"$f":"IFERROR(VLOOKUP(A142,G3wi!$A$2:$D$269,4,0),\"\")","v":""},null,null,null,null,null,null,null,null,null,null,null,null,null,null,null,null,null,null,null,null,null,null,null,null,null,null,null,null,null,null,null,null,0]
[null,{"$f":"IFERROR(VLOOKUP(A143,G3wi!$A$2:$D$269,2,0),\"\")","v":""},{"$f":"IFERROR(VLOOKUP(A143,G3wi!$A$2:$D$269,3,0),\"\")","v":""},{"$f":"IFERROR(VLOOKUP(A143,G3wi!$A$2:$D$269,4,0),\"\")","v":""},null,null,null,null,null,null,null,null,null,null,null,null,null,null,null,null,null,null,null,null,null,null,null,null,null,null,null,null,null,null,null,null,0]
[null,{"$f":"IFERROR(VLOOKUP(A144,G3wi!$A$2:$D$269,2,0),\"\")","v":""},{"$f":"IFERROR(VLOOKUP(A144,G3wi!$A$2:$D$269,3,0),\"\")","v":""},{"$f":"IFERROR(VLOOKUP(A144,G3wi!$A$2:$D$269,4,0),\"\")","v":""},null,null,null,null,null,null,null,null,null,null,null,null,null,null,null,null,null,null,null,null,null,null,null,null,null,null,null,null,null,null,null,null,0]
[null,{"$f":"IFERROR(VLOOKUP(A145,G3wi!$A$2:$D$269,2,0),\"\")","v":""},{"$f":"IFERROR(VLOOKUP(A145,G3wi!$A$2:$D$269,3,0),\"\")","v":""},{"$f":"IFERROR(VLOOKUP(A145,G3wi!$A$2:$D$269,4,0),\"\")","v":""},null,null,null,null,null,null,null,null,null,null,null,null,null,null,null,null,null,null,null,null,null,null,null,null,null,null,null,null,null,null,null,null,0]
[null,{"$f":"IFERROR(VLOOKUP(A146,G3wi!$A$2:$D$269,2,0),\"\")","v":""},{"$f":"IFERROR(VLOOKUP(A146,G3wi!$A$2:$D$269,3,0),\"\")","v":""},{"$f":"IFERROR(VLOOKUP(A146,G3wi!$A$2:$D$269,4,0),\"\")","v":""},null,null,null,null,null,null,null,null,null,null,null,null,null,null,null,null,null,null,null,null,null,null,null,null,null,null,null,null,null,null,null,null,0]
[null,{"$f":"IFERROR(VLOOKUP(A147,G3wi!$A$2:$D$269,2,0),\"\")","v":""},{"$f":"IFERROR(VLOOKUP(A147,G3wi!$A$2:$D$269,3,0),\"\")","v":""},{"$f":"IFERROR(VLOOKUP(A147,G3wi!$A$2:$D$269,4,0),\"\")","v":""},null,null,null,null,null,null,null,null,null,null,null,null,null,null,null,null,null,null,null,null,null,null,null,null,null,null,null,null,null,null,null,null,0]
[null,{"$f":"IFERROR(VLOOKUP(A148,G3wi!$A$2:$D$269,2,0),\"\")","v":""},{"$f":"IFERROR(VLOOKUP(A148,G3wi!$A$2:$D$269,3,0),\"\")","v":""},{"$f":"IFERROR(VLOOKUP(A148,G3wi!$A$2:$D$269,4,0),\"\")","v":""},null,null,null,null,null,null,null,null,null,null,null,null,null,null,null,null,null,null,null,null,null,null,null,null,null,null,null,null,null,null,null,null,0]
[null,{"$f":"IFERROR(VLOOKUP(A149,G3wi!$A$2:$D$269,2,0),\"\")","v":""},{"$f":"IFERROR(VLOOKUP(A149,G3wi!$A$2:$D$269,3,0),\"\")","v":""},{"$f":"IFERROR(VLOOKUP(A149,G3wi!$A$2:$D$269,4,0),\"\")","v":""},null,null,null,null,null,null,null,null,null,null,null,null,null,null,null,null,null,null,null,null,null,null,null,null,null,null,null,null,null,null,null,null,0]
[null,{"$f":"IFERROR(VLOOKUP(A150,G3wi!$A$2:$D$269,2,0),\"\")","v":""},{"$f":"IFERROR(VLOOKUP(A150,G3wi!$A$2:$D$269,3,0),\"\")","v":""},{"$f":"IFERROR(VLOOKUP(A150,G3wi!$A$2:$D$269,4,0),\"\")","v":""},null,null,null,null,null,null,null,null,null,null,null,null,null,null,null,null,null,null,null,null,null,null,null,null,null,null,null,null,null,null,null,null,0]
[null,{"$f":"IFERROR(VLOOKUP(A151,G3wi!$A$2:$D$269,2,0),\"\")","v":""},{"$f":"IFERROR(VLOOKUP(A151,G3wi!$A$2:$D$269,3,0),\"\")","v":""},{"$f":"IFERROR(VLOOKUP(A151,G3wi!$A$2:$D$269,4,0),\"\")","v":""},null,null,null,null,null,null,null,null,null,null,null,null,null,null,null,null,null,null,null,null,null,null,null,null,null,null,null,null,null,null,null,null,0]
[null,{"$f":"IFERROR(VLOOKUP(A152,G3wi!$A$2:$D$269,2,0),\"\")","v":""},{"$f":"IFERROR(VLOOKUP(A152,G3wi!$A$2:$D$269,3,0),\"\")","v":""},{"$f":"IFERROR(VLOOKUP(A152,G3wi!$A$2:$D$269,4,0),\"\")","v":""},null,null,null,null,null,null,null,null,null,null,null,null,null,null,null,null,null,null,null,null,null,null,null,null,null,null,null,null,null,null,null,null,0]
[null,{"$f":"IFERROR(VLOOKUP(A153,G3wi!$A$2:$D$269,2,0),\"\")","v":""},{"$f":"IFERROR(VLOOKUP(A153,G3wi!$A$2:$D$269,3,0),\"\")","v":""},{"$f":"IFERROR(VLOOKUP(A153,G3wi!$A$2:$D$269,4,0),\"\")","v":""},null,null,null,null,null,null,null,null,null,null,null,null,null,null,null,null,null,null,null,null,null,null,null,null,null,null,null,null,null,null,null,null,0]
[null,{"$f":"IFERROR(VLOOKUP(A154,G3wi!$A$2:$D$269,2,0),\"\")","v":""},{"$f":"IFERROR(VLOOKUP(A154,G3wi!$A$2:$D$269,3,0),\"\")","v":""},{"$f":"IFERROR(VLOOKUP(A154,G3wi!$A$2:$D$269,4,0),\"\")","v":""},null,null,null,null,null,null,null,null,null,null,null,null,null,null,null,null,null,null,null,null,null,null,null,null,null,null,null,null,null,null,null,null,0]
[null,{"$f":"IFERROR(VLOOKUP(A155,G3wi!$A$2:$D$269,2,0),\"\")","v":""},{"$f":"IFERROR(VLOOKUP(A155,G3wi!$A$2:$D$269,3,0),\"\")","v":""},{"$f":"IFERROR(VLOOKUP(A155,G3wi!$A$2:$D$269,4,0),\"\")","v":""},null,null,null,null,null,null,null,null,null,null,null,null,null,null,null,null,null,null,null,null,null,null,null,null,null,null,null,null,null,null,null,null,0]
[null,{"$f":"IFERROR(VLOOKUP(A156,G3wi!$A$2:$D$269,2,0),\"\")","v":""},{"$f":"IFERROR(VLOOKUP(A156,G3wi!$A$2:$D$269,3,0),\"\")","v":""},{"$f":"IFERROR(VLOOKUP(A156,G3wi!$A$2:$D$269,4,0),\"\")","v":""},null,null,null,null,null,null,null,null,null,null,null,null,null,null,null,null,null,null,null,null,null,null,null,null,null,null,null,null,null,null,null,null,0]
[null,{"$f":"IFERROR(VLOOKUP(A157,G3wi!$A$2:$D$269,2,0),\"\")","v":""},{"$f":"IFERROR(VLOOKUP(A157,G3wi!$A$2:$D$269,3,0),\"\")","v":""},{"$f":"IFERROR(VLOOKUP(A157,G3wi!$A$2:$D$269,4,0),\"\")","v":""},null,null,null,null,null,null,null,null,null,null,null,null,null,null,null,null,null,null,null,null,null,null,null,null,null,null,null,null,null,null,null,null,0]
[null,{"$f":"IFERROR(VLOOKUP(A158,G3wi!$A$2:$D$269,2,0),\"\")","v":""},{"$f":"IFERROR(VLOOKUP(A158,G3wi!$A$2:$D$269,3,0),\"\")","v":""},{"$f":"IFERROR(VLOOKUP(A158,G3wi!$A$2:$D$269,4,0),\"\")","v":""},null,null,null,null,null,null,null,null,null,null,null,null,null,null,null,null,null,null,null,null,null,null,null,null,null,null,null,null,null,null,null,null,0]
[null,{"$f":"IFERROR(VLOOKUP(A159,G3wi!$A$2:$D$269,2,0),\"\")","v":""},{"$f":"IFERROR(VLOOKUP(A159,G3wi!$A$2:$D$269,3,0),\"\")","v":""},{"$f":"IFERROR(VLOOKUP(A159,G3wi!$A$2:$D$269,4,0),\"\")","v":""},null,null,null,null,null,null,null,null,null,null,null,null,null,null,null,null,null,null,null,null,null,null,null,null,null,null,null,null,null,null,null,null,0]
[null,{"$f":"IFERROR(VLOOKUP(A160,G3wi!$A$2:$D$269,2,0),\"\")","v":""},{"$f":"IFERROR(VLOOKUP(A160,G3wi!$A$2:$D$269,3,0),\"\")","v":""},{"$f":"IFERROR(VLOOKUP(A160,G3wi!$A$2:$D$269,4,0),\"\")","v":""},null,null,null,null,null,null,null,null,null,null,null,null,null,null,null,null,null,null,null,null,null,null,null,null,null,null,null,null,null,null,null,null,0]
[null,{"$f":"IFERROR(VLOOKUP(A161,G3wi!$A$2:$D$269,2,0),\"\")","v":""},{"$f":"IFERROR(VLOOKUP(A161,G3wi!$A$2:$D$269,3,0),\"\")","v":""},{"$f":"IFERROR(VLOOKUP(A161,G3wi!$A$2:$D$269,4,0),\"\")","v":""},null,null,null,null,null,null,null,null,null,null,null,null,null,null,null,null,null,null,null,null,null,null,null,null,null,null,null,null,null,null,null,null,0]
[null,{"$f":"IFERROR(VLOOKUP(A162,G3wi!$A$2:$D$269,2,0),\"\")","v":""},{"$f":"IFERROR(VLOOKUP(A162,G3wi!$A$2:$D$269,3,0),\"\")","v":""},{"$f":"IFERROR(VLOOKUP(A162,G3wi!$A$2:$D$269,4,0),\"\")","v":""},null,null,null,null,null,null,null,null,null,null,null,null,null,null,null,null,null,null,null,null,null,null,null,null,null,null,null,null,null,null,null,null,0]
[null,{"$f":"IFERROR(VLOOKUP(A163,G3wi!$A$2:$D$269,2,0),\"\")","v":""},{"$f":"IFERROR(VLOOKUP(A163,G3wi!$A$2:$D$269,3,0),\"\")","v":""},{"$f":"IFERROR(VLOOKUP(A163,G3wi!$A$2:$D$269,4,0),\"\")","v":""},null,null,null,null,null,null,null,null,null,null,null,null,null,null,null,null,null,null,null,null,null,null,null,null,null,null,null,null,null,null,null,null,0]
[null,{"$f":"IFERROR(VLOOKUP(A164,G3wi!$A$2:$D$269,2,0),\"\")","v":""},{"$f":"IFERROR(VLOOKUP(A164,G3wi!$A$2:$D$269,3,0),\"\")","v":""},{"$f":"IFERROR(VLOOKUP(A164,G3wi!$A$2:$D$269,4,0),\"\")","v":""},null,null,null,null,null,null,null,null,null,null,null,null,null,null,null,null,null,null,null,null,null,null,null,null,null,null,null,null,null,null,null,null,0]
[null,{"$f":"IFERROR(VLOOKUP(A165,G3wi!$A$2:$D$269,2,0),\"\")","v":""},{"$f":"IFERROR(VLOOKUP(A165,G3wi!$A$2:$D$269,3,0),\"\")","v":""},{"$f":"IFERROR(VLOOKUP(A165,G3wi!$A$2:$D$269,4,0),\"\")","v":""},null,null,null,null,null,null,null,null,null,null,null,null,null,null,null,null,null,null,null,null,null,null,null,null,null,null,null,null,null,null,null,null,0]
[null,{"$f":"IFERROR(VLOOKUP(A166,G3wi!$A$2:$D$269,2,0),\"\")","v":""},{"$f":"IFERROR(VLOOKUP(A166,G3wi!$A$2:$D$269,3,0),\"\")","v":""},{"$f":"IFERROR(VLOOKUP(A166,G3wi!$A$2:$D$269,4,0),\"\")","v":""},null,null,null,null,null,null,null,null,null,null,null,null,null,null,null,null,null,null,null,null,null,null,null,null,null,null,null,null,null,null,null,null,0]
[null,{"$f":"IFERROR(VLOOKUP(A167,G3wi!$A$2:$D$269,2,0),\"\")","v":""},{"$f":"IFERROR(VLOOKUP(A167,G3wi!$A$2:$D$269,3,0),\"\")","v":""},{"$f":"IFERROR(VLOOKUP(A167,G3wi!$A$2:$D$269,4,0),\"\")","v":""},null,null,null,null,null,null,null,null,null,null,null,null,null,null,null,null,null,null,null,null,null,null,null,null,null,null,null,null,null,null,null,null,0]
[null,{"$f":"IFERROR(VLOOKUP(A168,G3wi!$A$2:$D$269,2,0),\"\")","v":""},{"$f":"IFERROR(VLOOKUP(A168,G3wi!$A$2:$D$269,3,0),\"\")","v":""},{"$f":"IFERROR(VLOOKUP(A168,G3wi!$A$2:$D$269,4,0),\"\")","v":""},null,null,null,null,null,null,null,null,null,null,null,null,null,null,null,null,null,null,null,null,null,null,null,null,null,null,null,null,null,null,null,null,0]
[null,{"$f":"IFERROR(VLOOKUP(A169,G3wi!$A$2:$D$269,2,0),\"\")","v":""},{"$f":"IFERROR(VLOOKUP(A169,G3wi!$A$2:$D$269,3,0),\"\")","v":""},{"$f":"IFERROR(VLOOKUP(A169,G3wi!$A$2:$D$269,4,0),\"\")","v":""},null,null,null,null,null,null,null,null,null,null,null,null,null,null,null,null,null,null,null,null,null,null,null,null,null,null,null,null,null,null,null,null,0]
[null,{"$f":"IFERROR(VLOOKUP(A170,G3wi!$A$2:$D$269,2,0),\"\")","v":""},{"$f":"IFERROR(VLOOKUP(A170,G3wi!$A$2:$D$269,3,0),\"\")","v":""},{"$f":"IFERROR(VLOOKUP(A170,G3wi!$A$2:$D$269,4,0),\"\")","v":""},null,null,null,null,null,null,null,null,null,null,null,null,null,null,null,null,null,null,null,null,null,null,null,null,null,null,null,null,null,null,null,null,0]
[null,{"$f":"IFERROR(VLOOKUP(A171,G3wi!$A$2:$D$269,2,0),\"\")","v":""},{"$f":"IFERROR(VLOOKUP(A171,G3wi!$A$2:$D$269,3,0),\"\")","v":""},{"$f":"IFERROR(VLOOKUP(A171,G3wi!$A$2:$D$269,4,0),\"\")","v":""},null,null,null,null,null,null,null,null,null,null,null,null,null,null,null,null,null,null,null,null,null,null,null,null,null,null,null,null,null,null,null,null,0]
[null,{"$f":"IFERROR(VLOOKUP(A172,G3wi!$A$2:$D$269,2,0),\"\")","v":""},{"$f":"IFERROR(VLOOKUP(A172,G3wi!$A$2:$D$269,3,0),\"\")","v":""},{"$f":"IFERROR(VLOOKUP(A172,G3wi!$A$2:$D$269,4,0),\"\")","v":""},null,null,null,null,null,null,null,null,null,null,null,null,null,null,null,null,null,null,null,null,null,null,null,null,null,null,null,null,null,null,null,null,0]
[null,{"$f":"IFERROR(VLOOKUP(A173,G3wi!$A$2:$D$269,2,0),\"\")","v":""},{"$f":"IFERROR(VLOOKUP(A173,G3wi!$A$2:$D$269,3,0),\"\")","v":""},{"$f":"IFERROR(VLOOKUP(A173,G3wi!$A$2:$D$269,4,0),\"\")","v":""},null,null,null,null,null,null,null,null,null,null,null,null,null,null,null,null,null,null,null,null,null,null,null,null,null,null,null,null,null,null,null,null,0]
[null,{"$f":"IFERROR(VLOOKUP(A174,G3wi!$A$2:$D$269,2,0),\"\")","v":""},{"$f":"IFERROR(VLOOKUP(A174,G3wi!$A$2:$D$269,3,0),\"\")","v":""},{"$f":"IFERROR(VLOOKUP(A174,G3wi!$A$2:$D$269,4,0),\"\")","v":""},null,null,null,null,null,null,null,null,null,null,null,null,null,null,null,null,null,null,null,null,null,null,null,null,null,null,null,null,null,null,null,null,0]
[null,{"$f":"IFERROR(VLOOKUP(A175,G3wi!$A$2:$D$269,2,0),\"\")","v":""},{"$f":"IFERROR(VLOOKUP(A175,G3wi!$A$2:$D$269,3,0),\"\")","v":""},{"$f":"IFERROR(VLOOKUP(A175,G3wi!$A$2:$D$269,4,0),\"\")","v":""},null,null,null,null,null,null,null,null,null,null,null,null,null,null,null,null,null,null,null,null,null,null,null,null,null,null,null,null,null,null,null,null,0]
[null,{"$f":"IFERROR(VLOOKUP(A176,G3wi!$A$2:$D$269,2,0),\"\")","v":""},{"$f":"IFERROR(VLOOKUP(A176,G3wi!$A$2:$D$269,3,0),\"\")","v":""},{"$f":"IFERROR(VLOOKUP(A176,G3wi!$A$2:$D$269,4,0),\"\")","v":""},null,null,null,null,null,null,null,null,null,null,null,null,null,null,null,null,null,null,null,null,null,null,null,null,null,null,null,null,null,null,null,null,0]
[null,{"$f":"IFERROR(VLOOKUP(A177,G3wi!$A$2:$D$269,2,0),\"\")","v":""},{"$f":"IFERROR(VLOOKUP(A177,G3wi!$A$2:$D$269,3,0),\"\")","v":""},{"$f":"IFERROR(VLOOKUP(A177,G3wi!$A$2:$D$269,4,0),\"\")","v":""},null,null,null,null,null,null,null,null,null,null,null,null,null,null,null,null,null,null,null,null,null,null,null,null,null,null,null,null,null,null,null,null,0]
[null,{"$f":"IFERROR(VLOOKUP(A178,G3wi!$A$2:$D$269,2,0),\"\")","v":""},{"$f":"IFERROR(VLOOKUP(A178,G3wi!$A$2:$D$269,3,0),\"\")","v":""},{"$f":"IFERROR(VLOOKUP(A178,G3wi!$A$2:$D$269,4,0),\"\")","v":""},null,null,null,null,null,null,null,null,null,null,null,null,null,null,null,null,null,null,null,null,null,null,null,null,null,null,null,null,null,null,null,null,0]
[null,{"$f":"IFERROR(VLOOKUP(A179,G3wi!$A$2:$D$269,2,0),\"\")","v":""},{"$f":"IFERROR(VLOOKUP(A179,G3wi!$A$2:$D$269,3,0),\"\")","v":""},{"$f":"IFERROR(VLOOKUP(A179,G3wi!$A$2:$D$269,4,0),\"\")","v":""},null,null,null,null,null,null,null,null,null,null,null,null,null,null,null,null,null,null,null,null,null,null,null,null,null,null,null,null,null,null,null,null,0]
[null,{"$f":"IFERROR(VLOOKUP(A180,G3wi!$A$2:$D$269,2,0),\"\")","v":""},{"$f":"IFERROR(VLOOKUP(A180,G3wi!$A$2:$D$269,3,0),\"\")","v":""},{"$f":"IFERROR(VLOOKUP(A180,G3wi!$A$2:$D$269,4,0),\"\")","v":""},null,null,null,null,null,null,null,null,null,null,null,null,null,null,null,null,null,null,null,null,null,null,null,null,null,null,null,null,null,null,null,null,0]
[null,{"$f":"IFERROR(VLOOKUP(A181,G3wi!$A$2:$D$269,2,0),\"\")","v":""},{"$f":"IFERROR(VLOOKUP(A181,G3wi!$A$2:$D$269,3,0),\"\")","v":""},{"$f":"IFERROR(VLOOKUP(A181,G3wi!$A$2:$D$269,4,0),\"\")","v":""},null,null,null,null,null,null,null,null,null,null,null,null,null,null,null,null,null,null,null,null,null,null,null,null,null,null,null,null,null,null,null,null,0]
[null,{"$f":"IFERROR(VLOOKUP(A182,G3wi!$A$2:$D$269,2,0),\"\")","v":""},{"$f":"IFERROR(VLOOKUP(A182,G3wi!$A$2:$D$269,3,0),\"\")","v":""},{"$f":"IFERROR(VLOOKUP(A182,G3wi!$A$2:$D$269,4,0),\"\")","v":""},null,null,null,null,null,null,null,null,null,null,null,null,null,null,null,null,null,null,null,null,null,null,null,null,null,null,null,null,null,null,null,null,0]
[null,{"$f":"IFERROR(VLOOKUP(A183,G3wi!$A$2:$D$269,2,0),\"\")","v":""},{"$f":"IFERROR(VLOOKUP(A183,G3wi!$A$2:$D$269,3,0),\"\")","v":""},{"$f":"IFERROR(VLOOKUP(A183,G3wi!$A$2:$D$269,4,0),\"\")","v":""},null,null,null,null,null,null,null,null,null,null,null,null,null,null,null,null,null,null,null,null,null,null,null,null,null,null,null,null,null,null,null,null,0]
[null,{"$f":"IFERROR(VLOOKUP(A184,G3wi!$A$2:$D$269,2,0),\"\")","v":""},{"$f":"IFERROR(VLOOKUP(A184,G3wi!$A$2:$D$269,3,0),\"\")","v":""},{"$f":"IFERROR(VLOOKUP(A184,G3wi!$A$2:$D$269,4,0),\"\")","v":""},null,null,null,null,null,null,null,null,null,null,null,null,null,null,null,null,null,null,null,null,null,null,null,null,null,null,null,null,null,null,null,null,0]
[null,{"$f":"IFERROR(VLOOKUP(A185,G3wi!$A$2:$D$269,2,0),\"\")","v":""},{"$f":"IFERROR(VLOOKUP(A185,G3wi!$A$2:$D$269,3,0),\"\")","v":""},{"$f":"IFERROR(VLOOKUP(A185,G3wi!$A$2:$D$269,4,0),\"\")","v":""},null,null,null,null,null,null,null,null,null,null,null,null,null,null,null,null,null,null,null,null,null,null,null,null,null,null,null,null,null,null,null,null,0]
[null,{"$f":"IFERROR(VLOOKUP(A186,G3wi!$A$2:$D$269,2,0),\"\")","v":""},{"$f":"IFERROR(VLOOKUP(A186,G3wi!$A$2:$D$269,3,0),\"\")","v":""},{"$f":"IFERROR(VLOOKUP(A186,G3wi!$A$2:$D$269,4,0),\"\")","v":""},null,null,null,null,null,null,null,null,null,null,null,null,null,null,null,null,null,null,null,null,null,null,null,null,null,null,null,null,null,null,null,null,0]
[null,{"$f":"IFERROR(VLOOKUP(A187,G3wi!$A$2:$D$269,2,0),\"\")","v":""},{"$f":"IFERROR(VLOOKUP(A187,G3wi!$A$2:$D$269,3,0),\"\")","v":""},{"$f":"IFERROR(VLOOKUP(A187,G3wi!$A$2:$D$269,4,0),\"\")","v":""},null,null,null,null,null,null,null,null,null,null,null,null,null,null,null,null,null,null,null,null,null,null,null,null,null,null,null,null,null,null,null,null,0]
[null,{"$f":"IFERROR(VLOOKUP(A188,G3wi!$A$2:$D$269,2,0),\"\")","v":""},{"$f":"IFERROR(VLOOKUP(A188,G3wi!$A$2:$D$269,3,0),\"\")","v":""},{"$f":"IFERROR(VLOOKUP(A188,G3wi!$A$2:$D$269,4,0),\"\")","v":""},null,null,null,null,null,null,null,null,null,null,null,null,null,null,null,null,null,null,null,null,null,null,null,null,null,null,null,null,null,null,null,null,0]
[null,{"$f":"IFERROR(VLOOKUP(A189,G3wi!$A$2:$D$269,2,0),\"\")","v":""},{"$f":"IFERROR(VLOOKUP(A189,G3wi!$A$2:$D$269,3,0),\"\")","v":""},{"$f":"IFERROR(VLOOKUP(A189,G3wi!$A$2:$D$269,4,0),\"\")","v":""},null,null,null,null,null,null,null,null,null,null,null,null,null,null,null,null,null,null,null,null,null,null,null,null,null,null,null,null,null,null,null,null,0]
[null,{"$f":"IFERROR(VLOOKUP(A190,G3wi!$A$2:$D$269,2,0),\"\")","v":""},{"$f":"IFERROR(VLOOKUP(A190,G3wi!$A$2:$D$269,3,0),\"\")","v":""},{"$f":"IFERROR(VLOOKUP(A190,G3wi!$A$2:$D$269,4,0),\"\")","v":""},null,null,null,null,null,null,null,null,null,null,null,null,null,null,null,null,null,null,null,null,null,null,null,null,null,null,null,null,null,null,null,null,0]
[null,{"$f":"IFERROR(VLOOKUP(A191,G3wi!$A$2:$D$269,2,0),\"\")","v":""},{"$f":"IFERROR(VLOOKUP(A191,G3wi!$A$2:$D$269,3,0),\"\")","v":""},{"$f":"IFERROR(VLOOKUP(A191,G3wi!$A$2:$D$269,4,0),\"\")","v":""},null,null,null,null,null,null,null,null,null,null,null,null,null,null,null,null,null,null,null,null,null,null,null,null,null,null,null,null,null,null,null,null,0]
[null,{"$f":"IFERROR(VLOOKUP(A192,G3wi!$A$2:$D$269,2,0),\"\")","v":""},{"$f":"IFERROR(VLOOKUP(A192,G3wi!$A$2:$D$269,3,0),\"\")","v":""},{"$f":"IFERROR(VLOOKUP(A192,G3wi!$A$2:$D$269,4,0),\"\")","v":""},null,null,null,null,null,null,null,null,null,null,null,null,null,null,null,null,null,null,null,null,null,null,null,null,null,null,null,null,null,null,null,null,0]
[null,{"$f":"IFERROR(VLOOKUP(A193,G3wi!$A$2:$D$269,2,0),\"\")","v":""},{"$f":"IFERROR(VLOOKUP(A193,G3wi!$A$2:$D$269,3,0),\"\")","v":""},{"$f":"IFERROR(VLOOKUP(A193,G3wi!$A$2:$D$269,4,0),\"\")","v":""},null,null,null,null,null,null,null,null,null,null,null,null,null,null,null,null,null,null,null,null,null,null,null,null,null,null,null,null,null,null,null,null,0]
[null,{"$f":"IFERROR(VLOOKUP(A194,G3wi!$A$2:$D$269,2,0),\"\")","v":""},{"$f":"IFERROR(VLOOKUP(A194,G3wi!$A$2:$D$269,3,0),\"\")","v":""},{"$f":"IFERROR(VLOOKUP(A194,G3wi!$A$2:$D$269,4,0),\"\")","v":""},null,null,null,null,null,null,null,null,null,null,null,null,null,null,null,null,null,null,null,null,null,null,null,null,null,null,null,null,null,null,null,null,0]
[null,{"$f":"IFERROR(VLOOKUP(A195,G3wi!$A$2:$D$269,2,0),\"\")","v":""},{"$f":"IFERROR(VLOOKUP(A195,G3wi!$A$2:$D$269,3,0),\"\")","v":""},{"$f":"IFERROR(VLOOKUP(A195,G3wi!$A$2:$D$269,4,0),\"\")","v":""},null,null,null,null,null,null,null,null,null,null,null,null,null,null,null,null,null,null,null,null,null,null,null,null,null,null,null,null,null,null,null,null,{"$f":"COUNTIF(E195:AI195,0)","v":0}]
[null,{"$f":"IFERROR(VLOOKUP(A196,G3wi!$A$2:$D$269,2,0),\"\")","v":""},{"$f":"IFERROR(VLOOKUP(A196,G3wi!$A$2:$D$269,3,0),\"\")","v":""},{"$f":"IFERROR(VLOOKUP(A196,G3wi!$A$2:$D$269,4,0),\"\")","v":""},null,null,null,null,null,null,null,null,null,null,null,null,null,null,null,null,null,null,null,null,null,null,null,null,null,null,null,null,null,null,null,null,0]
[null,{"$f":"IFERROR(VLOOKUP(A197,G3wi!$A$2:$D$269,2,0),\"\")","v":""},{"$f":"IFERROR(VLOOKUP(A197,G3wi!$A$2:$D$269,3,0),\"\")","v":""},{"$f":"IFERROR(VLOOKUP(A197,G3wi!$A$2:$D$269,4,0),\"\")","v":""},null,null,null,null,null,null,null,null,null,null,null,null,null,null,null,null,null,null,null,null,null,null,null,null,null,null,null,null,null,null,null,null,0]
[null,{"$f":"IFERROR(VLOOKUP(A198,G3wi!$A$2:$D$269,2,0),\"\")","v":""},{"$f":"IFERROR(VLOOKUP(A198,G3wi!$A$2:$D$269,3,0),\"\")","v":""},{"$f":"IFERROR(VLOOKUP(A198,G3wi!$A$2:$D$269,4,0),\"\")","v":""},null,null,null,null,null,null,null,null,null,null,null,null,null,null,null,null,null,null,null,null,null,null,null,null,null,null,null,null,null,null,null,null,0]
[null,{"$f":"IFERROR(VLOOKUP(A199,G3wi!$A$2:$D$269,2,0),\"\")","v":""},{"$f":"IFERROR(VLOOKUP(A199,G3wi!$A$2:$D$269,3,0),\"\")","v":""},{"$f":"IFERROR(VLOOKUP(A199,G3wi!$A$2:$D$269,4,0),\"\")","v":""},null,null,null,null,null,null,null,null,null,null,null,null,null,null,null,null,null,null,null,null,null,null,null,null,null,null,null,null,null,null,null,null,0]
[null,{"$f":"IFERROR(VLOOKUP(A200,G3wi!$A$2:$D$269,2,0),\"\")","v":""},{"$f":"IFERROR(VLOOKUP(A200,G3wi!$A$2:$D$269,3,0),\"\")","v":""},{"$f":"IFERROR(VLOOKUP(A200,G3wi!$A$2:$D$269,4,0),\"\")","v":""},null,null,null,null,null,null,null,null,null,null,null,null,null,null,null,null,null,null,null,null,null,null,null,null,null,null,null,null,null,null,null,null,0]
[null,{"$f":"IFERROR(VLOOKUP(A201,G3wi!$A$2:$D$269,2,0),\"\")","v":""},{"$f":"IFERROR(VLOOKUP(A201,G3wi!$A$2:$D$269,3,0),\"\")","v":""},{"$f":"IFERROR(VLOOKUP(A201,G3wi!$A$2:$D$269,4,0),\"\")","v":""},null,null,null,null,null,null,null,null,null,null,null,null,null,null,null,null,null,null,null,null,null,null,null,null,null,null,null,null,null,null,null,null,0]
[null,{"$f":"IFERROR(VLOOKUP(A202,G3wi!$A$2:$D$269,2,0),\"\")","v":""},{"$f":"IFERROR(VLOOKUP(A202,G3wi!$A$2:$D$269,3,0),\"\")","v":""},{"$f":"IFERROR(VLOOKUP(A202,G3wi!$A$2:$D$269,4,0),\"\")","v":""},null,null,null,null,null,null,null,null,null,null,null,null,null,null,null,null,null,null,null,null,null,null,null,null,null,null,null,null,null,null,null,null,0]
[null,{"$f":"IFERROR(VLOOKUP(A203,G3wi!$A$2:$D$269,2,0),\"\")","v":""},{"$f":"IFERROR(VLOOKUP(A203,G3wi!$A$2:$D$269,3,0),\"\")","v":""},{"$f":"IFERROR(VLOOKUP(A203,G3wi!$A$2:$D$269,4,0),\"\")","v":""},null,null,null,null,null,null,null,null,null,null,null,null,null,null,null,null,null,null,null,null,null,null,null,null,null,null,null,null,null,null,null,null,0]
[null,{"$f":"IFERROR(VLOOKUP(A204,G3wi!$A$2:$D$269,2,0),\"\")","v":""},{"$f":"IFERROR(VLOOKUP(A204,G3wi!$A$2:$D$269,3,0),\"\")","v":""},{"$f":"IFERROR(VLOOKUP(A204,G3wi!$A$2:$D$269,4,0),\"\")","v":""},null,null,null,null,null,null,null,null,null,null,null,null,null,null,null,null,null,null,null,null,null,null,null,null,null,null,null,null,null,null,null,null,0]
[null,{"$f":"IFERROR(VLOOKUP(A205,G3wi!$A$2:$D$269,2,0),\"\")","v":""},{"$f":"IFERROR(VLOOKUP(A205,G3wi!$A$2:$D$269,3,0),\"\")","v":""},{"$f":"IFERROR(VLOOKUP(A205,G3wi!$A$2:$D$269,4,0),\"\")","v":""},null,null,null,null,null,null,null,null,null,null,null,null,null,null,null,null,null,null,null,null,null,null,null,null,null,null,null,null,null,null,null,null,0]
[null,{"$f":"IFERROR(VLOOKUP(A206,G3wi!$A$2:$D$269,2,0),\"\")","v":""},{"$f":"IFERROR(VLOOKUP(A206,G3wi!$A$2:$D$269,3,0),\"\")","v":""},{"$f":"IFERROR(VLOOKUP(A206,G3wi!$A$2:$D$269,4,0),\"\")","v":""},null,null,null,null,null,null,null,null,null,null,null,null,null,null,null,null,null,null,null,null,null,null,null,null,null,null,null,null,null,null,null,null,0]
[null,{"$f":"IFERROR(VLOOKUP(A207,G3wi!$A$2:$D$269,2,0),\"\")","v":""},{"$f":"IFERROR(VLOOKUP(A207,G3wi!$A$2:$D$269,3,0),\"\")","v":""},{"$f":"IFERROR(VLOOKUP(A207,G3wi!$A$2:$D$269,4,0),\"\")","v":""},null,null,null,null,null,null,null,null,null,null,null,null,null,null,null,null,null,null,null,null,null,null,null,null,null,null,null,null,null,null,null,null,0]
[null,{"$f":"IFERROR(VLOOKUP(A208,G3wi!$A$2:$D$269,2,0),\"\")","v":""},{"$f":"IFERROR(VLOOKUP(A208,G3wi!$A$2:$D$269,3,0),\"\")","v":""},{"$f":"IFERROR(VLOOKUP(A208,G3wi!$A$2:$D$269,4,0),\"\")","v":""},null,null,null,null,null,null,null,null,null,null,null,null,null,null,null,null,null,null,null,null,null,null,null,null,null,null,null,null,null,null,null,null,0]
[null,{"$f":"IFERROR(VLOOKUP(A209,G3wi!$A$2:$D$269,2,0),\"\")","v":""},{"$f":"IFERROR(VLOOKUP(A209,G3wi!$A$2:$D$269,3,0),\"\")","v":""},{"$f":"IFERROR(VLOOKUP(A209,G3wi!$A$2:$D$269,4,0),\"\")","v":""},null,null,null,null,null,null,null,null,null,null,null,null,null,null,null,null,null,null,null,null,null,null,null,null,null,null,null,null,null,null,null,null,0]
[null,{"$f":"IFERROR(VLOOKUP(A210,G3wi!$A$2:$D$269,2,0),\"\")","v":""},{"$f":"IFERROR(VLOOKUP(A210,G3wi!$A$2:$D$269,3,0),\"\")","v":""},{"$f":"IFERROR(VLOOKUP(A210,G3wi!$A$2:$D$269,4,0),\"\")","v":""},null,null,null,null,null,null,null,null,null,null,null,null,null,null,null,null,null,null,null,null,null,null,null,null,null,null,null,null,null,null,null,null,0]
[null,{"$f":"IFERROR(VLOOKUP(A211,G3wi!$A$2:$D$269,2,0),\"\")","v":""},{"$f":"IFERROR(VLOOKUP(A211,G3wi!$A$2:$D$269,3,0),\"\")","v":""},{"$f":"IFERROR(VLOOKUP(A211,G3wi!$A$2:$D$269,4,0),\"\")","v":""},null,null,null,null,null,null,null,null,null,null,null,null,null,null,null,null,null,null,null,null,null,null,null,null,null,null,null,null,null,null,null,null,0]
[null,{"$f":"IFERROR(VLOOKUP(A212,G3wi!$A$2:$D$269,2,0),\"\")","v":""},{"$f":"IFERROR(VLOOKUP(A212,G3wi!$A$2:$D$269,3,0),\"\")","v":""},{"$f":"IFERROR(VLOOKUP(A212,G3wi!$A$2:$D$269,4,0),\"\")","v":""},null,null,null,null,null,null,null,null,null,null,null,null,null,null,null,null,null,null,null,null,null,null,null,null,null,null,null,null,null,null,null,null,0]
[null,{"$f":"IFERROR(VLOOKUP(A213,G3wi!$A$2:$D$269,2,0),\"\")","v":""},{"$f":"IFERROR(VLOOKUP(A213,G3wi!$A$2:$D$269,3,0),\"\")","v":""},{"$f":"IFERROR(VLOOKUP(A213,G3wi!$A$2:$D$269,4,0),\"\")","v":""},null,null,null,null,null,null,null,null,null,null,null,null,null,null,null,null,null,null,null,null,null,null,null,null,null,null,null,null,null,null,null,null,0]
[null,{"$f":"IFERROR(VLOOKUP(A214,G3wi!$A$2:$D$269,2,0),\"\")","v":""},{"$f":"IFERROR(VLOOKUP(A214,G3wi!$A$2:$D$269,3,0),\"\")","v":""},{"$f":"IFERROR(VLOOKUP(A214,G3wi!$A$2:$D$269,4,0),\"\")","v":""},null,null,null,null,null,null,null,null,null,null,null,null,null,null,null,null,null,null,null,null,null,null,null,null,null,null,null,null,null,null,null,null,0]
[null,{"$f":"IFERROR(VLOOKUP(A215,G3wi!$A$2:$D$269,2,0),\"\")","v":""},{"$f":"IFERROR(VLOOKUP(A215,G3wi!$A$2:$D$269,3,0),\"\")","v":""},{"$f":"IFERROR(VLOOKUP(A215,G3wi!$A$2:$D$269,4,0),\"\")","v":""},null,null,null,null,null,null,null,null,null,null,null,null,null,null,null,null,null,null,null,null,null,null,null,null,null,null,null,null,null,null,null,null,0]
[null,{"$f":"IFERROR(VLOOKUP(A216,G3wi!$A$2:$D$269,2,0),\"\")","v":""},{"$f":"IFERROR(VLOOKUP(A216,G3wi!$A$2:$D$269,3,0),\"\")","v":""},{"$f":"IFERROR(VLOOKUP(A216,G3wi!$A$2:$D$269,4,0),\"\")","v":""},null,null,null,null,null,null,null,null,null,null,null,null,null,null,null,null,null,null,null,null,null,null,null,null,null,null,null,null,null,null,null,null,0]
[null,{"$f":"IFERROR(VLOOKUP(A217,G3wi!$A$2:$D$269,2,0),\"\")","v":""},{"$f":"IFERROR(VLOOKUP(A217,G3wi!$A$2:$D$269,3,0),\"\")","v":""},{"$f":"IFERROR(VLOOKUP(A217,G3wi!$A$2:$D$269,4,0),\"\")","v":""},null,null,null,null,null,null,null,null,null,null,null,null,null,null,null,null,null,null,null,null,null,null,null,null,null,null,null,null,null,null,null,null,0]
[null,{"$f":"IFERROR(VLOOKUP(A218,G3wi!$A$2:$D$269,2,0),\"\")","v":""},{"$f":"IFERROR(VLOOKUP(A218,G3wi!$A$2:$D$269,3,0),\"\")","v":""},{"$f":"IFERROR(VLOOKUP(A218,G3wi!$A$2:$D$269,4,0),\"\")","v":""},null,null,null,null,null,null,null,null,null,null,null,null,null,null,null,null,null,null,null,null,null,null,null,null,null,null,null,null,null,null,null,null,0]
[null,{"$f":"IFERROR(VLOOKUP(A219,G3wi!$A$2:$D$269,2,0),\"\")","v":""},{"$f":"IFERROR(VLOOKUP(A219,G3wi!$A$2:$D$269,3,0),\"\")","v":""},{"$f":"IFERROR(VLOOKUP(A219,G3wi!$A$2:$D$269,4,0),\"\")","v":""},null,null,null,null,null,null,null,null,null,null,null,null,null,null,null,null,null,null,null,null,null,null,null,null,null,null,null,null,null,null,null,null,0]
[null,{"$f":"IFERROR(VLOOKUP(A220,G3wi!$A$2:$D$269,2,0),\"\")","v":""},{"$f":"IFERROR(VLOOKUP(A220,G3wi!$A$2:$D$269,3,0),\"\")","v":""},{"$f":"IFERROR(VLOOKUP(A220,G3wi!$A$2:$D$269,4,0),\"\")","v":""},null,null,null,null,null,null,null,null,null,null,null,null,null,null,null,null,null,null,null,null,null,null,null,null,null,null,null,null,null,null,null,null,0]
[null,{"$f":"IFERROR(VLOOKUP(A221,G3wi!$A$2:$D$269,2,0),\"\")","v":""},{"$f":"IFERROR(VLOOKUP(A221,G3wi!$A$2:$D$269,3,0),\"\")","v":""},{"$f":"IFERROR(VLOOKUP(A221,G3wi!$A$2:$D$269,4,0),\"\")","v":""},null,null,null,null,null,null,null,null,null,null,null,null,null,null,null,null,null,null,null,null,null,null,null,null,null,null,null,null,null,null,null,null,0]
[null,{"$f":"IFERROR(VLOOKUP(A222,G3wi!$A$2:$D$269,2,0),\"\")","v":""},{"$f":"IFERROR(VLOOKUP(A222,G3wi!$A$2:$D$269,3,0),\"\")","v":""},{"$f":"IFERROR(VLOOKUP(A222,G3wi!$A$2:$D$269,4,0),\"\")","v":""},null,null,null,null,null,null,null,null,null,null,null,null,null,null,null,null,null,null,null,null,null,null,null,null,null,null,null,null,null,null,null,null,0]
[null,{"$f":"IFERROR(VLOOKUP(A223,G3wi!$A$2:$D$269,2,0),\"\")","v":""},{"$f":"IFERROR(VLOOKUP(A223,G3wi!$A$2:$D$269,3,0),\"\")","v":""},{"$f":"IFERROR(VLOOKUP(A223,G3wi!$A$2:$D$269,4,0),\"\")","v":""},null,null,null,null,null,null,null,null,null,null,null,null,null,null,null,null,null,null,null,null,null,null,null,null,null,null,null,null,null,null,null,null,0]
[null,{"$f":"IFERROR(VLOOKUP(A224,G3wi!$A$2:$D$269,2,0),\"\")","v":""},{"$f":"IFERROR(VLOOKUP(A224,G3wi!$A$2:$D$269,3,0),\"\")","v":""},{"$f":"IFERROR(VLOOKUP(A224,G3wi!$A$2:$D$269,4,0),\"\")","v":""},null,null,null,null,null,null,null,null,null,null,null,null,null,null,null,null,null,null,null,null,null,null,null,null,null,null,null,null,null,null,null,null,0]
[null,{"$f":"IFERROR(VLOOKUP(A225,G3wi!$A$2:$D$269,2,0),\"\")","v":""},{"$f":"IFERROR(VLOOKUP(A225,G3wi!$A$2:$D$269,3,0),\"\")","v":""},{"$f":"IFERROR(VLOOKUP(A225,G3wi!$A$2:$D$269,4,0),\"\")","v":""},null,null,null,null,null,null,null,null,null,null,null,null,null,null,null,null,null,null,null,null,null,null,null,null,null,null,null,null,null,null,null,null,0]
[null,{"$f":"IFERROR(VLOOKUP(A226,G3wi!$A$2:$D$269,2,0),\"\")","v":""},{"$f":"IFERROR(VLOOKUP(A226,G3wi!$A$2:$D$269,3,0),\"\")","v":""},{"$f":"IFERROR(VLOOKUP(A226,G3wi!$A$2:$D$269,4,0),\"\")","v":""},null,null,null,null,null,null,null,null,null,null,null,null,null,null,null,null,null,null,null,null,null,null,null,null,null,null,null,null,null,null,null,null,0]
[null,{"$f":"IFERROR(VLOOKUP(A227,G3wi!$A$2:$D$269,2,0),\"\")","v":""},{"$f":"IFERROR(VLOOKUP(A227,G3wi!$A$2:$D$269,3,0),\"\")","v":""},{"$f":"IFERROR(VLOOKUP(A227,G3wi!$A$2:$D$269,4,0),\"\")","v":""},null,null,null,null,null,null,null,null,null,null,null,null,null,null,null,null,null,null,null,null,null,null,null,null,null,null,null,null,null,null,null,null,0]
[null,{"$f":"IFERROR(VLOOKUP(A228,G3wi!$A$2:$D$269,2,0),\"\")","v":""},{"$f":"IFERROR(VLOOKUP(A228,G3wi!$A$2:$D$269,3,0),\"\")","v":""},{"$f":"IFERROR(VLOOKUP(A228,G3wi!$A$2:$D$269,4,0),\"\")","v":""},null,null,null,null,null,null,null,null,null,null,null,null,null,null,null,null,null,null,null,null,null,null,null,null,null,null,null,null,null,null,null,null,0]
[null,{"$f":"IFERROR(VLOOKUP(A229,G3wi!$A$2:$D$269,2,0),\"\")","v":""},{"$f":"IFERROR(VLOOKUP(A229,G3wi!$A$2:$D$269,3,0),\"\")","v":""},{"$f":"IFERROR(VLOOKUP(A229,G3wi!$A$2:$D$269,4,0),\"\")","v":""},null,null,null,null,null,null,null,null,null,null,null,null,null,null,null,null,null,null,null,null,null,null,null,null,null,null,null,null,null,null,null,null,0]
[null,{"$f":"IFERROR(VLOOKUP(A230,G3wi!$A$2:$D$269,2,0),\"\")","v":""},{"$f":"IFERROR(VLOOKUP(A230,G3wi!$A$2:$D$269,3,0),\"\")","v":""},{"$f":"IFERROR(VLOOKUP(A230,G3wi!$A$2:$D$269,4,0),\"\")","v":""},null,null,null,null,null,null,null,null,null,null,null,null,null,null,null,null,null,null,null,null,null,null,null,null,null,null,null,null,null,null,null,null,0]
[null,{"$f":"IFERROR(VLOOKUP(A231,G3wi!$A$2:$D$269,2,0),\"\")","v":""},{"$f":"IFERROR(VLOOKUP(A231,G3wi!$A$2:$D$269,3,0),\"\")","v":""},{"$f":"IFERROR(VLOOKUP(A231,G3wi!$A$2:$D$269,4,0),\"\")","v":""},null,null,null,null,null,null,null,null,null,null,null,null,null,null,null,null,null,null,null,null,null,null,null,null,null,null,null,null,null,null,null,null,0]
[null,{"$f":"IFERROR(VLOOKUP(A232,G3wi!$A$2:$D$269,2,0),\"\")","v":""},{"$f":"IFERROR(VLOOKUP(A232,G3wi!$A$2:$D$269,3,0),\"\")","v":""},{"$f":"IFERROR(VLOOKUP(A232,G3wi!$A$2:$D$269,4,0),\"\")","v":""},null,null,null,null,null,null,null,null,null,null,null,null,null,null,null,null,null,null,null,null,null,null,null,null,null,null,null,null,null,null,null,null,0]
[null,{"$f":"IFERROR(VLOOKUP(A233,G3wi!$A$2:$D$269,2,0),\"\")","v":""},{"$f":"IFERROR(VLOOKUP(A233,G3wi!$A$2:$D$269,3,0),\"\")","v":""},{"$f":"IFERROR(VLOOKUP(A233,G3wi!$A$2:$D$269,4,0),\"\")","v":""},null,null,null,null,null,null,null,null,null,null,null,null,null,null,null,null,null,null,null,null,null,null,null,null,null,null,null,null,null,null,null,null,0]
[null,{"$f":"IFERROR(VLOOKUP(A234,G3wi!$A$2:$D$269,2,0),\"\")","v":""},{"$f":"IFERROR(VLOOKUP(A234,G3wi!$A$2:$D$269,3,0),\"\")","v":""},{"$f":"IFERROR(VLOOKUP(A234,G3wi!$A$2:$D$269,4,0),\"\")","v":""},null,null,null,null,null,null,null,null,null,null,null,null,null,null,null,null,null,null,null,null,null,null,null,null,null,null,null,null,null,null,null,null,0]
[null,{"$f":"IFERROR(VLOOKUP(A235,G3wi!$A$2:$D$269,2,0),\"\")","v":""},{"$f":"IFERROR(VLOOKUP(A235,G3wi!$A$2:$D$269,3,0),\"\")","v":""},{"$f":"IFERROR(VLOOKUP(A235,G3wi!$A$2:$D$269,4,0),\"\")","v":""},null,null,null,null,null,null,null,null,null,null,null,null,null,null,null,null,null,null,null,null,null,null,null,null,null,null,null,null,null,null,null,null,0]
[null,{"$f":"IFERROR(VLOOKUP(A236,G3wi!$A$2:$D$269,2,0),\"\")","v":""},{"$f":"IFERROR(VLOOKUP(A236,G3wi!$A$2:$D$269,3,0),\"\")","v":""},{"$f":"IFERROR(VLOOKUP(A236,G3wi!$A$2:$D$269,4,0),\"\")","v":""},null,null,null,null,null,null,null,null,null,null,null,null,null,null,null,null,null,null,null,null,null,null,null,null,null,null,null,null,null,null,null,null,0]
[null,{"$f":"IFERROR(VLOOKUP(A237,G3wi!$A$2:$D$269,2,0),\"\")","v":""},{"$f":"IFERROR(VLOOKUP(A237,G3wi!$A$2:$D$269,3,0),\"\")","v":""},{"$f":"IFERROR(VLOOKUP(A237,G3wi!$A$2:$D$269,4,0),\"\")","v":""},null,null,null,null,null,null,null,null,null,null,null,null,null,null,null,null,null,null,null,null,null,null,null,null,null,null,null,null,null,null,null,null,0]
[null,{"$f":"IFERROR(VLOOKUP(A238,G3wi!$A$2:$D$269,2,0),\"\")","v":""},{"$f":"IFERROR(VLOOKUP(A238,G3wi!$A$2:$D$269,3,0),\"\")","v":""},{"$f":"IFERROR(VLOOKUP(A238,G3wi!$A$2:$D$269,4,0),\"\")","v":""},null,null,null,null,null,null,null,null,null,null,null,null,null,null,null,null,null,null,null,null,null,null,null,null,null,null,null,null,null,null,null,null,0]
[null,{"$f":"IFERROR(VLOOKUP(A239,G3wi!$A$2:$D$269,2,0),\"\")","v":""},{"$f":"IFERROR(VLOOKUP(A239,G3wi!$A$2:$D$269,3,0),\"\")","v":""},{"$f":"IFERROR(VLOOKUP(A239,G3wi!$A$2:$D$269,4,0),\"\")","v":""},null,null,null,null,null,null,null,null,null,null,null,null,null,null,null,null,null,null,null,null,null,null,null,null,null,null,null,null,null,null,null,null,0]
[null,{"$f":"IFERROR(VLOOKUP(A240,G3wi!$A$2:$D$269,2,0),\"\")","v":""},{"$f":"IFERROR(VLOOKUP(A240,G3wi!$A$2:$D$269,3,0),\"\")","v":""},{"$f":"IFERROR(VLOOKUP(A240,G3wi!$A$2:$D$269,4,0),\"\")","v":""},null,null,null,null,null,null,null,null,null,null,null,null,null,null,null,null,null,null,null,null,null,null,null,null,null,null,null,null,null,null,null,null,0]
[null,{"$f":"IFERROR(VLOOKUP(A241,G3wi!$A$2:$D$269,2,0),\"\")","v":""},{"$f":"IFERROR(VLOOKUP(A241,G3wi!$A$2:$D$269,3,0),\"\")","v":""},{"$f":"IFERROR(VLOOKUP(A241,G3wi!$A$2:$D$269,4,0),\"\")","v":""},null,null,null,null,null,null,null,null,null,null,null,null,null,null,null,null,null,null,null,null,null,null,null,null,null,null,null,null,null,null,null,null,0]
[null,{"$f":"IFERROR(VLOOKUP(A242,G3wi!$A$2:$D$269,2,0),\"\")","v":""},{"$f":"IFERROR(VLOOKUP(A242,G3wi!$A$2:$D$269,3,0),\"\")","v":""},{"$f":"IFERROR(VLOOKUP(A242,G3wi!$A$2:$D$269,4,0),\"\")","v":""},null,null,null,null,null,null,null,null,null,null,null,null,null,null,null,null,null,null,null,null,null,null,null,null,null,null,null,null,null,null,null,null,0]
[null,{"$f":"IFERROR(VLOOKUP(A243,G3wi!$A$2:$D$269,2,0),\"\")","v":""},{"$f":"IFERROR(VLOOKUP(A243,G3wi!$A$2:$D$269,3,0),\"\")","v":""},{"$f":"IFERROR(VLOOKUP(A243,G3wi!$A$2:$D$269,4,0),\"\")","v":""},null,null,null,null,null,null,null,null,null,null,null,null,null,null,null,null,null,null,null,null,null,null,null,null,null,null,null,null,null,null,null,null,0]
[null,{"$f":"IFERROR(VLOOKUP(A244,G3wi!$A$2:$D$269,2,0),\"\")","v":""},{"$f":"IFERROR(VLOOKUP(A244,G3wi!$A$2:$D$269,3,0),\"\")","v":""},{"$f":"IFERROR(VLOOKUP(A244,G3wi!$A$2:$D$269,4,0),\"\")","v":""},null,null,null,null,null,null,null,null,null,null,null,null,null,null,null,null,null,null,null,null,null,null,null,null,null,null,null,null,null,null,null,null,0]
[null,{"$f":"IFERROR(VLOOKUP(A245,G3wi!$A$2:$D$269,2,0),\"\")","v":""},{"$f":"IFERROR(VLOOKUP(A245,G3wi!$A$2:$D$269,3,0),\"\")","v":""},{"$f":"IFERROR(VLOOKUP(A245,G3wi!$A$2:$D$269,4,0),\"\")","v":""},null,null,null,null,null,null,null,null,null,null,null,null,null,null,null,null,null,null,null,null,null,null,null,null,null,null,null,null,null,null,null,null,0]
[null,{"$f":"IFERROR(VLOOKUP(A246,G3wi!$A$2:$D$269,2,0),\"\")","v":""},{"$f":"IFERROR(VLOOKUP(A246,G3wi!$A$2:$D$269,3,0),\"\")","v":""},{"$f":"IFERROR(VLOOKUP(A246,G3wi!$A$2:$D$269,4,0),\"\")","v":""},null,null,null,null,null,null,null,null,null,null,null,null,null,null,null,null,null,null,null,null,null,null,null,null,null,null,null,null,null,null,null,null,0]
[null,{"$f":"IFERROR(VLOOKUP(A247,G3wi!$A$2:$D$269,2,0),\"\")","v":""},{"$f":"IFERROR(VLOOKUP(A247,G3wi!$A$2:$D$269,3,0),\"\")","v":""},{"$f":"IFERROR(VLOOKUP(A247,G3wi!$A$2:$D$269,4,0),\"\")","v":""},null,null,null,null,null,null,null,null,null,null,null,null,null,null,null,null,null,null,null,null,null,null,null,null,null,null,null,null,null,null,null,null,0]
[null,{"$f":"IFERROR(VLOOKUP(A248,G3wi!$A$2:$D$269,2,0),\"\")","v":""},{"$f":"IFERROR(VLOOKUP(A248,G3wi!$A$2:$D$269,3,0),\"\")","v":""},{"$f":"IFERROR(VLOOKUP(A248,G3wi!$A$2:$D$269,4,0),\"\")","v":""},null,null,null,null,null,null,null,null,null,null,null,null,null,null,null,null,null,null,null,null,null,null,null,null,null,null,null,null,null,null,null,null,0]
[null,{"$f":"IFERROR(VLOOKUP(A249,G3wi!$A$2:$D$269,2,0),\"\")","v":""},{"$f":"IFERROR(VLOOKUP(A249,G3wi!$A$2:$D$269,3,0),\"\")","v":""},{"$f":"IFERROR(VLOOKUP(A249,G3wi!$A$2:$D$269,4,0),\"\")","v":""},null,null,null,null,null,null,null,null,null,null,null,null,null,null,null,null,null,null,null,null,null,null,null,null,null,null,null,null,null,null,null,null,0]
[null,{"$f":"IFERROR(VLOOKUP(A250,G3wi!$A$2:$D$269,2,0),\"\")","v":""},{"$f":"IFERROR(VLOOKUP(A250,G3wi!$A$2:$D$269,3,0),\"\")","v":""},{"$f":"IFERROR(VLOOKUP(A250,G3wi!$A$2:$D$269,4,0),\"\")","v":""},null,null,null,null,null,null,null,null,null,null,null,null,null,null,null,null,null,null,null,null,null,null,null,null,null,null,null,null,null,null,null,null,0]
[null,{"$f":"IFERROR(VLOOKUP(A251,G3wi!$A$2:$D$269,2,0),\"\")","v":""},{"$f":"IFERROR(VLOOKUP(A251,G3wi!$A$2:$D$269,3,0),\"\")","v":""},{"$f":"IFERROR(VLOOKUP(A251,G3wi!$A$2:$D$269,4,0),\"\")","v":""},null,null,null,null,null,null,null,null,null,null,null,null,null,null,null,null,null,null,null,null,null,null,null,null,null,null,null,null,null,null,null,null,0]
[null,{"$f":"IFERROR(VLOOKUP(A252,G3wi!$A$2:$D$269,2,0),\"\")","v":""},{"$f":"IFERROR(VLOOKUP(A252,G3wi!$A$2:$D$269,3,0),\"\")","v":""},{"$f":"IFERROR(VLOOKUP(A252,G3wi!$A$2:$D$269,4,0),\"\")","v":""},null,null,null,null,null,null,null,null,null,null,null,null,null,null,null,null,null,null,null,null,null,null,null,null,null,null,null,null,null,null,null,null,0]
[null,{"$f":"IFERROR(VLOOKUP(A253,G3wi!$A$2:$D$269,2,0),\"\")","v":""},{"$f":"IFERROR(VLOOKUP(A253,G3wi!$A$2:$D$269,3,0),\"\")","v":""},{"$f":"IFERROR(VLOOKUP(A253,G3wi!$A$2:$D$269,4,0),\"\")","v":""},null,null,null,null,null,null,null,null,null,null,null,null,null,null,null,null,null,null,null,null,null,null,null,null,null,null,null,null,null,null,null,null,0]
[null,{"$f":"IFERROR(VLOOKUP(A254,G3wi!$A$2:$D$269,2,0),\"\")","v":""},{"$f":"IFERROR(VLOOKUP(A254,G3wi!$A$2:$D$269,3,0),\"\")","v":""},{"$f":"IFERROR(VLOOKUP(A254,G3wi!$A$2:$D$269,4,0),\"\")","v":""},null,null,null,null,null,null,null,null,null,null,null,null,null,null,null,null,null,null,null,null,null,null,null,null,null,null,null,null,null,null,null,null,0]
[null,{"$f":"IFERROR(VLOOKUP(A255,G3wi!$A$2:$D$269,2,0),\"\")","v":""},{"$f":"IFERROR(VLOOKUP(A255,G3wi!$A$2:$D$269,3,0),\"\")","v":""},{"$f":"IFERROR(VLOOKUP(A255,G3wi!$A$2:$D$269,4,0),\"\")","v":""},null,null,null,null,null,null,null,null,null,null,null,null,null,null,null,null,null,null,null,null,null,null,null,null,null,null,null,null,null,null,null,null,0]
[null,{"$f":"IFERROR(VLOOKUP(A256,G3wi!$A$2:$D$269,2,0),\"\")","v":""},{"$f":"IFERROR(VLOOKUP(A256,G3wi!$A$2:$D$269,3,0),\"\")","v":""},{"$f":"IFERROR(VLOOKUP(A256,G3wi!$A$2:$D$269,4,0),\"\")","v":""},null,null,null,null,null,null,null,null,null,null,null,null,null,null,null,null,null,null,null,null,null,null,null,null,null,null,null,null,null,null,null,null,0]
[null,{"$f":"IFERROR(VLOOKUP(A257,G3wi!$A$2:$D$269,2,0),\"\")","v":""},{"$f":"IFERROR(VLOOKUP(A257,G3wi!$A$2:$D$269,3,0),\"\")","v":""},{"$f":"IFERROR(VLOOKUP(A257,G3wi!$A$2:$D$269,4,0),\"\")","v":""},null,null,null,null,null,null,null,null,null,null,null,null,null,null,null,null,null,null,null,null,null,null,null,null,null,null,null,null,null,null,null,null,0]
[null,{"$f":"IFERROR(VLOOKUP(A258,G3wi!$A$2:$D$269,2,0),\"\")","v":""},{"$f":"IFERROR(VLOOKUP(A258,G3wi!$A$2:$D$269,3,0),\"\")","v":""},{"$f":"IFERROR(VLOOKUP(A258,G3wi!$A$2:$D$269,4,0),\"\")","v":""},null,null,null,null,null,null,null,null,null,null,null,null,null,null,null,null,null,null,null,null,null,null,null,null,null,null,null,null,null,null,null,null,0]
[null,{"$f":"IFERROR(VLOOKUP(A259,G3wi!$A$2:$D$269,2,0),\"\")","v":""},{"$f":"IFERROR(VLOOKUP(A259,G3wi!$A$2:$D$269,3,0),\"\")","v":""},{"$f":"IFERROR(VLOOKUP(A259,G3wi!$A$2:$D$269,4,0),\"\")","v":""},null,null,null,null,null,null,null,null,null,null,null,null,null,null,null,null,null,null,null,null,null,null,null,null,null,null,null,null,null,null,null,null,{"$f":"COUNTIF(E259:AI259,0)","v":0}]
[null,{"$f":"IFERROR(VLOOKUP(A260,G3wi!$A$2:$D$269,2,0),\"\")","v":""},{"$f":"IFERROR(VLOOKUP(A260,G3wi!$A$2:$D$269,3,0),\"\")","v":""},{"$f":"IFERROR(VLOOKUP(A260,G3wi!$A$2:$D$269,4,0),\"\")","v":""},null,null,null,null,null,null,null,null,null,null,null,null,null,null,null,null,null,null,null,null,null,null,null,null,null,null,null,null,null,null,null,null,0]
[null,{"$f":"IFERROR(VLOOKUP(A261,G3wi!$A$2:$D$269,2,0),\"\")","v":""},{"$f":"IFERROR(VLOOKUP(A261,G3wi!$A$2:$D$269,3,0),\"\")","v":""},{"$f":"IFERROR(VLOOKUP(A261,G3wi!$A$2:$D$269,4,0),\"\")","v":""},null,null,null,null,null,null,null,null,null,null,null,null,null,null,null,null,null,null,null,null,null,null,null,null,null,null,null,null,null,null,null,null,0]
[null,{"$f":"IFERROR(VLOOKUP(A262,G3wi!$A$2:$D$269,2,0),\"\")","v":""},{"$f":"IFERROR(VLOOKUP(A262,G3wi!$A$2:$D$269,3,0),\"\")","v":""},{"$f":"IFERROR(VLOOKUP(A262,G3wi!$A$2:$D$269,4,0),\"\")","v":""},null,null,null,null,null,null,null,null,null,null,null,null,null,null,null,null,null,null,null,null,null,null,null,null,null,null,null,null,null,null,null,null,0]
[null,{"$f":"IFERROR(VLOOKUP(A263,G3wi!$A$2:$D$269,2,0),\"\")","v":""},{"$f":"IFERROR(VLOOKUP(A263,G3wi!$A$2:$D$269,3,0),\"\")","v":""},{"$f":"IFERROR(VLOOKUP(A263,G3wi!$A$2:$D$269,4,0),\"\")","v":""},null,null,null,null,null,null,null,null,null,null,null,null,null,null,null,null,null,null,null,null,null,null,null,null,null,null,null,null,null,null,null,null,0]
[null,{"$f":"IFERROR(VLOOKUP(A264,G3wi!$A$2:$D$269,2,0),\"\")","v":""},{"$f":"IFERROR(VLOOKUP(A264,G3wi!$A$2:$D$269,3,0),\"\")","v":""},{"$f":"IFERROR(VLOOKUP(A264,G3wi!$A$2:$D$269,4,0),\"\")","v":""},null,null,null,null,null,null,null,null,null,null,null,null,null,null,null,null,null,null,null,null,null,null,null,null,null,null,null,null,null,null,null,null,0]
[null,{"$f":"IFERROR(VLOOKUP(A265,G3wi!$A$2:$D$269,2,0),\"\")","v":""},{"$f":"IFERROR(VLOOKUP(A265,G3wi!$A$2:$D$269,3,0),\"\")","v":""},{"$f":"IFERROR(VLOOKUP(A265,G3wi!$A$2:$D$269,4,0),\"\")","v":""},null,null,null,null,null,null,null,null,null,null,null,null,null,null,null,null,null,null,null,null,null,null,null,null,null,null,null,null,null,null,null,null,0]
[null,{"$f":"IFERROR(VLOOKUP(A266,G3wi!$A$2:$D$269,2,0),\"\")","v":""},{"$f":"IFERROR(VLOOKUP(A266,G3wi!$A$2:$D$269,3,0),\"\")","v":""},{"$f":"IFERROR(VLOOKUP(A266,G3wi!$A$2:$D$269,4,0),\"\")","v":""},null,null,null,null,null,null,null,null,null,null,null,null,null,null,null,null,null,null,null,null,null,null,null,null,null,null,null,null,null,null,null,null,0]
[null,{"$f":"IFERROR(VLOOKUP(A267,G3wi!$A$2:$D$269,2,0),\"\")","v":""},{"$f":"IFERROR(VLOOKUP(A267,G3wi!$A$2:$D$269,3,0),\"\")","v":""},{"$f":"IFERROR(VLOOKUP(A267,G3wi!$A$2:$D$269,4,0),\"\")","v":""},null,null,null,null,null,null,null,null,null,null,null,null,null,null,null,null,null,null,null,null,null,null,null,null,null,null,null,null,null,null,null,null,0]
[null,{"$f":"IFERROR(VLOOKUP(A268,G3wi!$A$2:$D$269,2,0),\"\")","v":""},{"$f":"IFERROR(VLOOKUP(A268,G3wi!$A$2:$D$269,3,0),\"\")","v":""},{"$f":"IFERROR(VLOOKUP(A268,G3wi!$A$2:$D$269,4,0),\"\")","v":""},null,null,null,null,null,null,null,null,null,null,null,null,null,null,null,null,null,null,null,null,null,null,null,null,null,null,null,null,null,null,null,null,0]
[null,{"$f":"IFERROR(VLOOKUP(A269,G3wi!$A$2:$D$269,2,0),\"\")","v":""},{"$f":"IFERROR(VLOOKUP(A269,G3wi!$A$2:$D$269,3,0),\"\")","v":""},{"$f":"IFERROR(VLOOKUP(A269,G3wi!$A$2:$D$269,4,0),\"\")","v":""},null,null,null,null,null,null,null,null,null,null,null,null,null,null,null,null,null,null,null,null,null,null,null,null,null,null,null,null,null,null,null,null,0]
[null,{"$f":"IFERROR(VLOOKUP(A270,G3wi!$A$2:$D$269,2,0),\"\")","v":""},{"$f":"IFERROR(VLOOKUP(A270,G3wi!$A$2:$D$269,3,0),\"\")","v":""},{"$f":"IFERROR(VLOOKUP(A270,G3wi!$A$2:$D$269,4,0),\"\")","v":""},null,null,null,null,null,null,null,null,null,null,null,null,null,null,null,null,null,null,null,null,null,null,null,null,null,null,null,null,null,null,null,null,0]
[null,{"$f":"IFERROR(VLOOKUP(A271,G3wi!$A$2:$D$269,2,0),\"\")","v":""},{"$f":"IFERROR(VLOOKUP(A271,G3wi!$A$2:$D$269,3,0),\"\")","v":""},{"$f":"IFERROR(VLOOKUP(A271,G3wi!$A$2:$D$269,4,0),\"\")","v":""},null,null,null,null,null,null,null,null,null,null,null,null,null,null,null,null,null,null,null,null,null,null,null,null,null,null,null,null,null,null,null,null,0]
[null,{"$f":"IFERROR(VLOOKUP(A272,G3wi!$A$2:$D$269,2,0),\"\")","v":""},{"$f":"IFERROR(VLOOKUP(A272,G3wi!$A$2:$D$269,3,0),\"\")","v":""},{"$f":"IFERROR(VLOOKUP(A272,G3wi!$A$2:$D$269,4,0),\"\")","v":""},null,null,null,null,null,null,null,null,null,null,null,null,null,null,null,null,null,null,null,null,null,null,null,null,null,null,null,null,null,null,null,null,0]
[null,{"$f":"IFERROR(VLOOKUP(A273,G3wi!$A$2:$D$269,2,0),\"\")","v":""},{"$f":"IFERROR(VLOOKUP(A273,G3wi!$A$2:$D$269,3,0),\"\")","v":""},{"$f":"IFERROR(VLOOKUP(A273,G3wi!$A$2:$D$269,4,0),\"\")","v":""},null,null,null,null,null,null,null,null,null,null,null,null,null,null,null,null,null,null,null,null,null,null,null,null,null,null,null,null,null,null,null,null,0]
[null,{"$f":"IFERROR(VLOOKUP(A274,G3wi!$A$2:$D$269,2,0),\"\")","v":""},{"$f":"IFERROR(VLOOKUP(A274,G3wi!$A$2:$D$269,3,0),\"\")","v":""},{"$f":"IFERROR(VLOOKUP(A274,G3wi!$A$2:$D$269,4,0),\"\")","v":""},null,null,null,null,null,null,null,null,null,null,null,null,null,null,null,null,null,null,null,null,null,null,null,null,null,null,null,null,null,null,null,null,0]
[null,{"$f":"IFERROR(VLOOKUP(A275,G3wi!$A$2:$D$269,2,0),\"\")","v":""},{"$f":"IFERROR(VLOOKUP(A275,G3wi!$A$2:$D$269,3,0),\"\")","v":""},{"$f":"IFERROR(VLOOKUP(A275,G3wi!$A$2:$D$269,4,0),\"\")","v":""},null,null,null,null,null,null,null,null,null,null,null,null,null,null,null,null,null,null,null,null,null,null,null,null,null,null,null,null,null,null,null,null,0]
[null,{"$f":"IFERROR(VLOOKUP(A276,G3wi!$A$2:$D$269,2,0),\"\")","v":""},{"$f":"IFERROR(VLOOKUP(A276,G3wi!$A$2:$D$269,3,0),\"\")","v":""},{"$f":"IFERROR(VLOOKUP(A276,G3wi!$A$2:$D$269,4,0),\"\")","v":""},null,null,null,null,null,null,null,null,null,null,null,null,null,null,null,null,null,null,null,null,null,null,null,null,null,null,null,null,null,null,null,null,0]
[null,{"$f":"IFERROR(VLOOKUP(A277,G3wi!$A$2:$D$269,2,0),\"\")","v":""},{"$f":"IFERROR(VLOOKUP(A277,G3wi!$A$2:$D$269,3,0),\"\")","v":""},{"$f":"IFERROR(VLOOKUP(A277,G3wi!$A$2:$D$269,4,0),\"\")","v":""},null,null,null,null,null,null,null,null,null,null,null,null,null,null,null,null,null,null,null,null,null,null,null,null,null,null,null,null,null,null,null,null,0]
[null,{"$f":"IFERROR(VLOOKUP(A278,G3wi!$A$2:$D$269,2,0),\"\")","v":""},{"$f":"IFERROR(VLOOKUP(A278,G3wi!$A$2:$D$269,3,0),\"\")","v":""},{"$f":"IFERROR(VLOOKUP(A278,G3wi!$A$2:$D$269,4,0),\"\")","v":""},null,null,null,null,null,null,null,null,null,null,null,null,null,null,null,null,null,null,null,null,null,null,null,null,null,null,null,null,null,null,null,null,0]
[null,{"$f":"IFERROR(VLOOKUP(A279,G3wi!$A$2:$D$269,2,0),\"\")","v":""},{"$f":"IFERROR(VLOOKUP(A279,G3wi!$A$2:$D$269,3,0),\"\")","v":""},{"$f":"IFERROR(VLOOKUP(A279,G3wi!$A$2:$D$269,4,0),\"\")","v":""},null,null,null,null,null,null,null,null,null,null,null,null,null,null,null,null,null,null,null,null,null,null,null,null,null,null,null,null,null,null,null,null,0]
[null,{"$f":"IFERROR(VLOOKUP(A280,G3wi!$A$2:$D$269,2,0),\"\")","v":""},{"$f":"IFERROR(VLOOKUP(A280,G3wi!$A$2:$D$269,3,0),\"\")","v":""},{"$f":"IFERROR(VLOOKUP(A280,G3wi!$A$2:$D$269,4,0),\"\")","v":""},null,null,null,null,null,null,null,null,null,null,null,null,null,null,null,null,null,null,null,null,null,null,null,null,null,null,null,null,null,null,null,null,0]
[null,{"$f":"IFERROR(VLOOKUP(A281,G3wi!$A$2:$D$269,2,0),\"\")","v":""},{"$f":"IFERROR(VLOOKUP(A281,G3wi!$A$2:$D$269,3,0),\"\")","v":""},{"$f":"IFERROR(VLOOKUP(A281,G3wi!$A$2:$D$269,4,0),\"\")","v":""},null,null,null,null,null,null,null,null,null,null,null,null,null,null,null,null,null,null,null,null,null,null,null,null,null,null,null,null,null,null,null,null,0]
[null,{"$f":"IFERROR(VLOOKUP(A282,G3wi!$A$2:$D$269,2,0),\"\")","v":""},{"$f":"IFERROR(VLOOKUP(A282,G3wi!$A$2:$D$269,3,0),\"\")","v":""},{"$f":"IFERROR(VLOOKUP(A282,G3wi!$A$2:$D$269,4,0),\"\")","v":""},null,null,null,null,null,null,null,null,null,null,null,null,null,null,null,null,null,null,null,null,null,null,null,null,null,null,null,null,null,null,null,null,0]
[null,{"$f":"IFERROR(VLOOKUP(A283,G3wi!$A$2:$D$269,2,0),\"\")","v":""},{"$f":"IFERROR(VLOOKUP(A283,G3wi!$A$2:$D$269,3,0),\"\")","v":""},{"$f":"IFERROR(VLOOKUP(A283,G3wi!$A$2:$D$269,4,0),\"\")","v":""},null,null,null,null,null,null,null,null,null,null,null,null,null,null,null,null,null,null,null,null,null,null,null,null,null,null,null,null,null,null,null,null,0]
[null,{"$f":"IFERROR(VLOOKUP(A284,G3wi!$A$2:$D$269,2,0),\"\")","v":""},{"$f":"IFERROR(VLOOKUP(A284,G3wi!$A$2:$D$269,3,0),\"\")","v":""},{"$f":"IFERROR(VLOOKUP(A284,G3wi!$A$2:$D$269,4,0),\"\")","v":""},null,null,null,null,null,null,null,null,null,null,null,null,null,null,null,null,null,null,null,null,null,null,null,null,null,null,null,null,null,null,null,null,0]
[null,{"$f":"IFERROR(VLOOKUP(A285,G3wi!$A$2:$D$269,2,0),\"\")","v":""},{"$f":"IFERROR(VLOOKUP(A285,G3wi!$A$2:$D$269,3,0),\"\")","v":""},{"$f":"IFERROR(VLOOKUP(A285,G3wi!$A$2:$D$269,4,0),\"\")","v":""},null,null,null,null,null,null,null,null,null,null,null,null,null,null,null,null,null,null,null,null,null,null,null,null,null,null,null,null,null,null,null,null,0]
[null,{"$f":"IFERROR(VLOOKUP(A286,G3wi!$A$2:$D$269,2,0),\"\")","v":""},{"$f":"IFERROR(VLOOKUP(A286,G3wi!$A$2:$D$269,3,0),\"\")","v":""},{"$f":"IFERROR(VLOOKUP(A286,G3wi!$A$2:$D$269,4,0),\"\")","v":""},null,null,null,null,null,null,null,null,null,null,null,null,null,null,null,null,null,null,null,null,null,null,null,null,null,null,null,null,null,null,null,null,0]
[null,{"$f":"IFERROR(VLOOKUP(A287,G3wi!$A$2:$D$269,2,0),\"\")","v":""},{"$f":"IFERROR(VLOOKUP(A287,G3wi!$A$2:$D$269,3,0),\"\")","v":""},{"$f":"IFERROR(VLOOKUP(A287,G3wi!$A$2:$D$269,4,0),\"\")","v":""},null,null,null,null,null,null,null,null,null,null,null,null,null,null,null,null,null,null,null,null,null,null,null,null,null,null,null,null,null,null,null,null,0]
[null,{"$f":"IFERROR(VLOOKUP(A288,G3wi!$A$2:$D$269,2,0),\"\")","v":""},{"$f":"IFERROR(VLOOKUP(A288,G3wi!$A$2:$D$269,3,0),\"\")","v":""},{"$f":"IFERROR(VLOOKUP(A288,G3wi!$A$2:$D$269,4,0),\"\")","v":""},null,null,null,null,null,null,null,null,null,null,null,null,null,null,null,null,null,null,null,null,null,null,null,null,null,null,null,null,null,null,null,null,0]
[null,{"$f":"IFERROR(VLOOKUP(A289,G3wi!$A$2:$D$269,2,0),\"\")","v":""},{"$f":"IFERROR(VLOOKUP(A289,G3wi!$A$2:$D$269,3,0),\"\")","v":""},{"$f":"IFERROR(VLOOKUP(A289,G3wi!$A$2:$D$269,4,0),\"\")","v":""},null,null,null,null,null,null,null,null,null,null,null,null,null,null,null,null,null,null,null,null,null,null,null,null,null,null,null,null,null,null,null,null,0]
[null,{"$f":"IFERROR(VLOOKUP(A290,G3wi!$A$2:$D$269,2,0),\"\")","v":""},{"$f":"IFERROR(VLOOKUP(A290,G3wi!$A$2:$D$269,3,0),\"\")","v":""},{"$f":"IFERROR(VLOOKUP(A290,G3wi!$A$2:$D$269,4,0),\"\")","v":""},null,null,null,null,null,null,null,null,null,null,null,null,null,null,null,null,null,null,null,null,null,null,null,null,null,null,null,null,null,null,null,null,0]
[null,{"$f":"IFERROR(VLOOKUP(A291,G3wi!$A$2:$D$269,2,0),\"\")","v":""},{"$f":"IFERROR(VLOOKUP(A291,G3wi!$A$2:$D$269,3,0),\"\")","v":""},{"$f":"IFERROR(VLOOKUP(A291,G3wi!$A$2:$D$269,4,0),\"\")","v":""},null,null,null,null,null,null,null,null,null,null,null,null,null,null,null,null,null,null,null,null,null,null,null,null,null,null,null,null,null,null,null,null,0]
[null,{"$f":"IFERROR(VLOOKUP(A292,G3wi!$A$2:$D$269,2,0),\"\")","v":""},{"$f":"IFERROR(VLOOKUP(A292,G3wi!$A$2:$D$269,3,0),\"\")","v":""},{"$f":"IFERROR(VLOOKUP(A292,G3wi!$A$2:$D$269,4,0),\"\")","v":""},null,null,null,null,null,null,null,null,null,null,null,null,null,null,null,null,null,null,null,null,null,null,null,null,null,null,null,null,null,null,null,null,0]
[null,{"$f":"IFERROR(VLOOKUP(A293,G3wi!$A$2:$D$269,2,0),\"\")","v":""},{"$f":"IFERROR(VLOOKUP(A293,G3wi!$A$2:$D$269,3,0),\"\")","v":""},{"$f":"IFERROR(VLOOKUP(A293,G3wi!$A$2:$D$269,4,0),\"\")","v":""},null,null,null,null,null,null,null,null,null,null,null,null,null,null,null,null,null,null,null,null,null,null,null,null,null,null,null,null,null,null,null,null,0]
[null,{"$f":"IFERROR(VLOOKUP(A294,G3wi!$A$2:$D$269,2,0),\"\")","v":""},{"$f":"IFERROR(VLOOKUP(A294,G3wi!$A$2:$D$269,3,0),\"\")","v":""},{"$f":"IFERROR(VLOOKUP(A294,G3wi!$A$2:$D$269,4,0),\"\")","v":""},null,null,null,null,null,null,null,null,null,null,null,null,null,null,null,null,null,null,null,null,null,null,null,null,null,null,null,null,null,null,null,null,0]
[null,{"$f":"IFERROR(VLOOKUP(A295,G3wi!$A$2:$D$269,2,0),\"\")","v":""},{"$f":"IFERROR(VLOOKUP(A295,G3wi!$A$2:$D$269,3,0),\"\")","v":""},{"$f":"IFERROR(VLOOKUP(A295,G3wi!$A$2:$D$269,4,0),\"\")","v":""},null,null,null,null,null,null,null,null,null,null,null,null,null,null,null,null,null,null,null,null,null,null,null,null,null,null,null,null,null,null,null,null,0]
[null,{"$f":"IFERROR(VLOOKUP(A296,G3wi!$A$2:$D$269,2,0),\"\")","v":""},{"$f":"IFERROR(VLOOKUP(A296,G3wi!$A$2:$D$269,3,0),\"\")","v":""},{"$f":"IFERROR(VLOOKUP(A296,G3wi!$A$2:$D$269,4,0),\"\")","v":""},null,null,null,null,null,null,null,null,null,null,null,null,null,null,null,null,null,null,null,null,null,null,null,null,null,null,null,null,null,null,null,null,0]
[null,{"$f":"IFERROR(VLOOKUP(A297,G3wi!$A$2:$D$269,2,0),\"\")","v":""},{"$f":"IFERROR(VLOOKUP(A297,G3wi!$A$2:$D$269,3,0),\"\")","v":""},{"$f":"IFERROR(VLOOKUP(A297,G3wi!$A$2:$D$269,4,0),\"\")","v":""},null,null,null,null,null,null,null,null,null,null,null,null,null,null,null,null,null,null,null,null,null,null,null,null,null,null,null,null,null,null,null,null,0]
[null,{"$f":"IFERROR(VLOOKUP(A298,G3wi!$A$2:$D$269,2,0),\"\")","v":""},{"$f":"IFERROR(VLOOKUP(A298,G3wi!$A$2:$D$269,3,0),\"\")","v":""},{"$f":"IFERROR(VLOOKUP(A298,G3wi!$A$2:$D$269,4,0),\"\")","v":""},null,null,null,null,null,null,null,null,null,null,null,null,null,null,null,null,null,null,null,null,null,null,null,null,null,null,null,null,null,null,null,null,0]

{"sheet":"G3wi","index":1,"n_rows":183,"n_cols":11,"rows_kept":183,"cut":false,"hidden":false,"merged":[]}
["No","Name","Section","JOB"]
[6013,"Muslhaldin Abdul Alim","n1 Production Section","Out Sourcing Labor",null,null,"sun",1]
[6014,"Abduliail Surujmiah","n1 Production Section","Forklift Operator",null,null,"mon",2]
[6018,"Saydul Sk Dulal Sk","n1 Production Section","Out Sourcing Labor",null,null,"tue",3,{"$f":"DAY(HR!AG2)","v":23},{"$f":"DAY(HR!AH2)","v":24},{"$f":"DAY(HR!AI2)","v":25}]
[6031,"Asarul Hoque Abbas Ali","n5 Production Section","Out Sourcing Labor",null,null,"wed",4]
[6049,"Ganesh Thapa Magar Kunti","n4 Mixing & Pelletizing Section","Out Sourcing Labor",null,null,"thu",5]
[6052,"Ajad Seikh Jabu Seikh","n4+5 Inbound Logistics Section","Out Sourcing Labor",null,null,"fri",6]
[6053,"Sukur Mir Anarul Mir","n4 Production Section","Out Sourcing Labor",null,null,"sat",7]
[6057,"Laltu Kumar Rajak","n4 Production Section","Out Sourcing Labor",null,null,null,8]
[6069,"Wahed Miah Siddiqur Rahman","n1 Loading Section","Forklift Operator",null,null,null,9]
[6070,"Ahmed Khalilur Rahman","n1 Loading Section","Forklift Operator",null,null,null,10]
[6071,"Lokman Haru Sek","n1 Loading Section","Forklift Operator",null,null,null,11]
[6074,"Shahid Abdul Qasim","n1 Production Section","Forklift Operator",null,null,null,12]
[6085,"Shafiqul Islam Nurul Islam","n1 Loading Section","Out Sourcing Labor",null,null,null,13]
[6089,"Mamun Abdul Momen A","n1 Loading Section","Out Sourcing Labor",null,null,null,14]
[6091,"Sajahan Abul Haseam Sheak","n1 Loading Section","Forklift Operator",null,null,null,15]
[6116,"Sohrab Hossain Hiron Miah","n4+5 Maintenance Section","Out Sourcing Labor",null,null,null,16]
[6118,"Mohammad Shahid Razi","n1 Production Section","Out Sourcing Labor",null,null,null,17]
[6120,"Ravindra Yadav Ram Naresh","n1 Loading Section","Out Sourcing Labor",null,null,null,18]
[6129,"Shamas Ud Din Ghulam Fareed","n1 Loading Section","Out Sourcing Labor",null,null,null,19]
[6130,"Allah Wasaya Ghulam Mustafa","n4+5 Loading Section","Out Sourcing Labor",null,null,null,20]
[6134,"Saiyed Asif Bari","n1 Mixing & Crusher Section","Out Sourcing Labor",null,null,null,21]
[6135,"Samim Ayyoob Khan","n5 Production Section","Out Sourcing Labor",null,null,null,22]
[6141,"Rajan Niroula","n1 Loading Section","Out Sourcing Labor",null,null,null,23]
[6143,"Ansar Ahmed Imteyaz Ahmed","n4+5 Loading Section","Forklift Operator",null,null,null,24]
[6144,"Mohammad Riyaj Jameel Ahmed","n1 Production Section","Out Sourcing Labor",null,null,null,25]
[6153,"Surya Bahadur Shrestha","Al-Khumra Stores Section","Forklift Operator"]
[6156,"Manoj Kumar Panchoo","n1 Production Section","Out Sourcing Labor"]
[6164,"Bablu Debnath Gopal Debnath","n1 Spare Parts Store Section","Forklift Operator"]
[6174,"Mohammed Shahin Miah Mostafa","n5 Production Section","Out Sourcing Labor"]
[6177,"Sohel Miah Takdir Hossain","n5 Production Section","Out Sourcing Labor"]
[6179,"Rofiqul Islam Hazrat Ali","n5 Production Section","Out Sourcing Labor"]
[6181,"Ramzan Nazim Uddin","n5 Production Section","Out Sourcing Labor"]
[6182,"Saif Al-islam Muslim Aldin","General Services Section","Out Sourcing Labor"]
[6185,"Shehadat Khan Ali Azgar","n4+5 Spare Parts Store Section","Out Sourcing Labor"]
[6186,"Sona Miah Monsor Ali","n5 Production Section","Out Sourcing Labor"]
[6192,"Rana Shaha Uddin","n5 Production Section","Out Sourcing Labor"]
[6195,"Mohammed Azad Abdul Majid","n5 Production Section","Out Sourcing Labor"]
[6214,"Mohammad Sareef Ajeej","n5 Production Section","Out Sourcing Labor"]
[6218,"Mohammad Sahab Uddin Md Abul","n5 Production Section","Out Sourcing Labor"]
[6221,"Jahirul Islam Ful Miah","n4+5 Loading Section","Out Sourcing Labor"]
[6222,"Mokbal Jaru Miah","n4+5 Loading Section","Out Sourcing Labor"]
[6235,"Mohammad Ibrahim Md Joynal","n1 Production Section","Out Sourcing Labor"]
[6247,"Mohammad Sohel Rana Abul","n4+5 Health And Safety Section","Housekeeping Labor"]
[6249,"Mostafa Nader Ali Sokera","n4 Production Section","Out Sourcing Labor"]
[6251,"Alom Hossen Abduljalil","n5 Production Section","Out Sourcing Labor"]
[6258,"Birendra Sah","n4+5 Maintenance Section","Out Sourcing Labor"]
[6262,"Ariful Islam Abdul Aziz","n5 Production Section","Out Sourcing Labor"]
[6263,"Hanu Miah Hatem Ali","General Services Section","Bus Driver"]
[6282,"Zahir Hasan Saiphu","n5 Production Section","Out Sourcing Labor"]
[6292,"Ataul Karim Anowarul Karim","General Services Section","Out Sourcing Labor"]
[6293,"Rubel Esak Ali","n1 Loading Section","Out Sourcing Labor"]
[6295,"Ghulam Muhammad Gabol Shah Dino Gabol","n1 Loading Section","Out Sourcing Labor"]
[6301,"Muhammad Majid Manzoor Ur Rehman","n4 Production Section","Out Sourcing Labor"]
[6302,"Faheem Abdul Kareem","n4+5 Loading Section","Out Sourcing Labor"]
[6318,"Sakib Alam Habibur Rahman","n1 Production Section","Out Sourcing Labor"]
[6319,"Ahmad Khan Siddiq Khan","n1 Production Section","Out Sourcing Labor"]
[6320,"Pankaj Kumar Ganesh Prasad","n1 Production Section","Out Sourcing Labor"]
[6327,"Saydul Islam MD Sahab","n4+5 Quality Control","Out Sourcing Labor"]
[6330,"Bharat K C","n4+5 Health And Safety Section","Housekeeping Labor"]
[6340,"Muhammad Umer  Hamid Hassan","n5 Production Section","Out Sourcing Labor"]
[6346,"Bedbahadur Oli","n1 Health And Safety Section","Housekeeping Labor"]
[6352,"Rasel Hosen Safi Bazlur","n4 Production Section","Out Sourcing Labor"]
[6361,"Ahadul Alam Mahadul Sekh","n4 Production Section","Out Sourcing Labor"]
[6365,"Mohammad Tabish Qumar","n4 Mixing & Pelletizing Section","Out Sourcing Labor"]
[6377,"Shahid Gulzar Gulzar Ahmad","n5 Production Section","Out Sourcing Labor"]
[6378,"Mohammad Delowar Hossain Abdur","n4 Production Section","Out Sourcing Labor"]
[6380,"Sonu Sabbir Ahmad","n1 Maintenance Section","Out Sourcing Labor"]
[6391,"Roton Barek Rabeya","n1 Loading Section","Out Sourcing Labor"]
[6396,"Noman Mizi Toha Mizi","n1 Operation Warehouse Section","Out Sourcing Labor"]
[6403,"Md Jahangir Md Faruk","n1 Production Section","Out Sourcing Labor"]
[6409,"Mobarak Ali Hanifa Miah","n5 Production Section","Out Sourcing Labor"]
[6419,"Mohammad Usman Amjad","n4 Production Section","Out Sourcing Labor"]
[6427,"Chandradip Yadav","n4 Production Section","Out Sourcing Labor"]
[6435,"Ram Khelaun Mandal","n4 Production Section","Out Sourcing Labor"]
[6437,"Dev Narayan Yadav","n4 Production Section","Out Sourcing Labor"]
[6438,"Muhammad Zaid Akabar","General Services Section","Bus Driver"]
[6447,"Ramsamujh Sahani Ramsavare","n5 Production Section","Out Sourcing Labor"]
[6457,"Ravindra Kumar Mansha Ram","n5 Production Section","Out Sourcing Labor"]
[6463,"Krishna Bahadur Bomjan","General Services Section","Bus Driver"]
[6464,"Sushanta Das Anil Das","Al-Khumra Stores Section","Out Sourcing Labor"]
[6465,"Muhammad Bilal Muhammad Aslam","n5 Production Section","Out Sourcing Labor"]
[6470,"Lokman Lal - Miah","n4+5 Health And Safety Section","Housekeeping Labor"]
[6475,"Purnand Joshi","n1 Health And Safety Section","Housekeeping Labor"]
[6477,"Nandlal Kurmi","n4+5 Loading Section","Out Sourcing Labor"]
[6488,"Taijel Sekh Rejel Sekh","n1 Health And Safety Section","Housekeeping Labor"]
[6490,"Mohammad Sohel Rana","n4+5 Health And Safety Section","Housekeeping Labor"]
[6494,"Naseem Ahmad Mumtaz Ahmad","n1 Production Section","Out Sourcing Labor"]
[6496,"Rajendra Kumar Banshi lal","n1 Loading Section","Out Sourcing Labor"]
[6497,"Ramkesh Chulhaee","n1 Loading Section","Out Sourcing Labor"]
[6500,"Manoj Sah","n1 Health And Safety Section","Housekeeping Labor"]
[6501,"Raju Rajendra","n1 Maintenance Section","Out Sourcing Labor"]
[6511,"Mohammad Rahim Mohammad Jalal","n1 Health And Safety Section","Housekeeping Labor"]
[6513,"Swapon Abdul Kuddus","n1 Health And Safety Section","Housekeeping Labor"]
[6514,"Rijvan Ahamad Siraj Ahamad","n4+5 Maintenance Section","Out Sourcing Labor"]
[6515,"Mohammad Saifi Mohammad Lateef","n5 Production Section","Out Sourcing Labor"]
[6518,"Abul Kalam Azad Sekh","n5 Production Section","Out Sourcing Labor"]
[6520,"Leyakat Ali Shabbir Hasan","n5 Production Section","Out Sourcing Labor"]
[6525,"Ajij Jafar Shah","n1 Loading Section","Out Sourcing Labor"]
[6526,"Surat SK Mohibul SK","n1 Production Section","Out Sourcing Labor"]
[6532,"Ponnoo Thambi M. Irethinasingam","n4+5 Health And Safety Section","Housekeeping Labor"]
[6534,"Muhammad Shahbaz Ghulam Fareed","n5 Production Section","Out Sourcing Labor"]
[6540,"Mohammad Naseem Abdul Aziz","n1 Production Section","Out Sourcing Labor"]
[6541,"Mo Arif Kadir Ahmad","n1 Production Section","Out Sourcing Labor"]
[6545,"Md Khorsed Alam","n5 Production Section","Out Sourcing Labor"]
[6546,"Uzzal Miah Sadek Miah","n5 Production Section","Out Sourcing Labor"]
[6548,"Md Nader Ali","n1 Production Section","Out Sourcing Labor"]
[6552,"Ram Krit Singh Yadav","n1 Production Section","Out Sourcing Labor"]
[6556,"Joynal Abdin","n5 Production Section","Out Sourcing Labor"]
[6557,"Mohammad Islam Mohd Asraf","n5 Production Section","Out Sourcing Labor"]
[6558,"Md Bablu Sikder","n5 Production Section","Out Sourcing Labor"]
[6561,"Md Hamraj Alam","n1 Production Section","Out Sourcing Labor"]
[6564,"Obaeidollah Shohid Miah","General Services Section","Bus Driver"]
[6574,"Padam Rokaya","n4 Mixing & Pelletizing Section","Out Sourcing Labor"]
[6575,"Shehar Abjol Miah","n1 Production Section","Out Sourcing Labor"]
[6576,"Md Norul Amin","n1 Production Section","Out Sourcing Labor"]
[6579,"Mohammad Aarif Abdulkayoom","n4+5 Maintenance Section","Out Sourcing Labor"]
[6582,"Domingo ii Nalda Jacinto","General Services Section","Buffet Labor"]
[6583,"Satya Narayan Sah Sunita","n1 Health And Safety Section","Housekeeping Labor"]
[6584,"Ansarool Hak Matiul Hak","n4 Production Section","Out Sourcing Labor"]
[6586,"Kabir Hossen Abdur Razzak","n1 Health And Safety Section","Housekeeping Labor"]
[6587,"Abu Talha Mohammad Noman","n5 Production Section","Out Sourcing Labor"]
[6588,"Shyam Bahadur Kumal","n5 Production Section","Out Sourcing Labor"]
[6590,"Asad Mehmood Fakhar E Alam","n5 Production Section","Out Sourcing Labor"]
[6593,"Mohammad Mansur Mohammad Isa","n5 Production Section","Out Sourcing Labor"]
[6594,"Satish Ram Saran","n5 Production Section","Out Sourcing Labor"]
[6595,"Patiraj Kumar Bishram","n5 Production Section","Out Sourcing Labor"]
[6596,"Jitendra Prasad Rajbanshi","n5 Production Section","Out Sourcing Labor"]
[6599,"Sewal Ali","n4 Mixing & Pelletizing Section","Out Sourcing Labor"]
[6600,"Mohammad Mazhar Najmul Haq","n1 Mixing & Crusher Section","Out Sourcing Labor"]
[6602,"Romon Miah","n4+5 Loading Section","Out Sourcing Labor"]
[6603,"Abdul Razzaq A Abbdul Ghafoor","n4+5 Loading Section","Out Sourcing Labor"]
[6604,"Md Sobuj Mia","n1 Health And Safety Section","Housekeeping Labor"]
[6607,"Mohammad Saddam Hossain Md","n4 Mixing & Pelletizing Section","Out Sourcing Labor"]
[6608,"Md Sadik Miah Md","n4 Production Section","Out Sourcing Labor"]
[6610,"MD Sumon Miah MD","n1 Mixing & Crusher Section","Out Sourcing Labor"]
[6611,"Jahid Ali Sher Ali","n1 Production Section","Out Sourcing Labor"]
[6612,"Rehan Ahmad Ekhlaq Ahmad","n1 Production Section","Out Sourcing Labor"]
[6613,"Shambhu Sah Kanu","n4+5 Health And Safety Section","Out Sourcing Labor"]
[6617,"Rabbi Miah Fazlul Karim","n1 Production Section","Out Sourcing Labor"]
[6620,"Nabir Hossain Matab Miah","n4 Production Section","Out Sourcing Labor"]
[6623,"Sadir Jabbar Golondaz","n5 Production Section","Out Sourcing Labor"]
[6624,"Motaleb Hossen Md Abdul","n5 Production Section","Out Sourcing Labor"]
[6625,"Hridoy Ahamed Alahi Miah","n5 Production Section","Out Sourcing Labor"]
[6628,"Angur Ali Murselim Sk","n5 Production Section","Out Sourcing Labor"]
[6632,"Mahi Uddin Golam Mostafa","n5 Production Section","Out Sourcing Labor"]
[6633,"Abdul Majid Abdul Hamid","n5 Production Section","Out Sourcing Labor"]
[6638,"Rosauro Javier Gimeno","General Services Section","Buffet Labor"]
[6639,"Rajesh Kumar Ram Narayan","n5 Production Section","Out Sourcing Labor"]
[6640,"Billal Hossain Shahidur Rahman","n4+5 Maintenance Section","Out Sourcing Labor"]
[6641,"Shahabar  Hossain","n5 Production Section","Out Sourcing Labor"]
[6644,"Kishan Adhikari","n4 Production Section","Out Sourcing Labor"]
[6645,"Abdul Hakim Abdul Latif","n4+5 Loading Section","Out Sourcing Labor"]
[6646,"Buddha Bahadur Aale","n5 Production Section","Out Sourcing Labor"]
[6649,"Saligram Bk","n5 Production Section","Out Sourcing Labor"]
[6650,"Rajendra Bahadur Kumal","n4 Production Section","Out Sourcing Labor"]
[6651,"Gholam Mostafa Mohammad Mutiur","n4 Mixing & Pelletizing Section","Out Sourcing Labor"]
[6653,"Suraj Bk","n5 Production Section","Out Sourcing Labor"]
[6654,"Krishna Bahadur Bishwokarma","n4 Mixing & Pelletizing Section","Out Sourcing Labor"]
[6656,"Mohammad Hasim Salamatullah","n1 Production Section","Out Sourcing Labor"]
[6657,"MD Hussain Sannwar Hussain","n1 Production Section","Out Sourcing Labor"]
[6658,"Alam Taufique Khurshid Alam","n1 Production Section","Out Sourcing Labor"]
[6659,"Saru Mallik Enat Mallik","n1 Production Section","Out Sourcing Labor"]
[6660,"Aman Hossain Ali Ashraf","n4+5 Inbound Logistics Section","Out Sourcing Labor"]
[6661,"Mohammad Harun Miah Shamsul","n4+5 Inbound Logistics Section","Out Sourcing Labor"]
[6663,"Masoud Maiah","n1 Health And Safety Section","Housekeeping Labor"]
[6664,"Mohammad Imran Hossain Md","n5 Production Section","Out Sourcing Labor"]
[6665,"Rodillo Predilla Nete","n4+5 Loading Section","Forklift Operator"]
[6666,"Shahin Abu Saied","n1 Health And Safety Section","Housekeeping Labor"]
[6667,"Md Faruk Ahmmed","n1 Die Section","Out Sourcing Labor"]
[6668,"Md Uzzal Mia","n4 Production Section","Out Sourcing Labor"]
[6669,"Mohammad Hanif","n4 Production Section","Out Sourcing Labor"]
[6671," Panna Lal Kesan Lal","n4 Production Section","Out Sourcing Labor"]
[6672,"Shamshad Ahmad Shakeel Ahmad","n4 Production Section","Out Sourcing Labor"]
[6673,"Md Shahidul Islam","n4 Production Section","Out Sourcing Labor"]
[6674,"Mohammad Dilkhush Amser Ali","n4 Production Section","Out Sourcing Labor"]
[6675,"Bhim Bahadur Sunuwar","n4 Production Section","Out Sourcing Labor"]
[6676,"Mohammad Rashid Shafeeq Ahmad","n4 Production Section","Out Sourcing Labor"]
[6678,"Sarafraz Ahamad Reyaz Ahamad","n4+5 Loading Section","Out Sourcing Labor"]
[6679,"Kasi Ram Bk","n4 Production Section","Out Sourcing Labor"]
[6680,"Omprakash Ramsuresh Ramsuresh","n4 Production Section","Out Sourcing Labor"]
[6681,"Mohammad Amir Abdul Waheed","n4 Production Section","Out Sourcing Labor"]
[6683,"Shahbaz Ahmad Rasheed Ahmed","n4+5 Loading Section","Out Sourcing Labor"]